Workbook

Sheet VZT - bazén
C1: hodnoty editovatelné
C2: mezihodnoty vypočítané
C3: výsledky
C4: ZADÁNÍ - VÝPOČET VÝKONU BAZÉNOVÉHO VÝMĚNÍKU
C7: BUDOVA | I7: BAZÉN - VODNÍ PLOCHA
C8: šířka | D8: 10 | I8: délka | K8: 6
C9: délka | D9: 15 | I9: šířka | K9: 3
C10: výška | D10: 6.2 | I10: TYP BAZÉNU | K10: vnitřní
C12: TEPLOTA VZDUCHU | I12: TEPLOTA VODY
C13: ti při provozu | D13: 29 | E13: dop. hodnoty 28-30 °C | I13: rozdíl mezi teplotou vzduchu a vody
C14: rh vzduchu - provoz | D14: 65 | E14: dop. hodnoty 55-65 % | I14: (doporučení 2 až 3K) | K14: 1 | L14: pro zmenšení odparu
C15: parametry ti a rhi mimo provoz (pokles 2K) | D15: =D13-2 -> 27 | I15: teplota vody | K15: =D13-K14 -> 28 | L15: vypočítává se z dt výše
D16: 55
I17: ZAKRÝVÁNÍ BAZÉNU | K17: ano | L17: doporučeno zakrývat
C18: EXTERIÉR - PARAMETRY
C19: návrhová teplota | D19: -12 | E19: min. teplota -20°C | I19: UŽÍVÁNÍ BAZÉNU
C20: relativní vlhkosti | D20: 100 | I20: dní v měsící | K20: 10 | L20: dní
C21: střední teplota/den | D21: 11 | E21: poznámka viz níže | I21: hodin ze dne | K21: 1 | L21: hod
C22: střední teplota/noc | D22: 7 | E22: poznámka viz níže | I22: měsíců v roce | K22: 12 | L22: měsíců
I23: Doporučené hodnoty solární energie
C24: Poznámky: | I24: venkovní bazén | K24: 5 | L24: kWh/m2.den
C25: - Teploty 11/7°C jsou hodnoty doporučené pro venkovní bazén při provozu od dubna do října | I25: vnitřní bazén | K25: 0 | L25: kWh/m2.den
I26: energie slun záření | K26: =IF(K10="venkovní",K24,K25) -> 0 | L26: kWh/m2.den
C27: - Pro vnitřní bazén se hodnoty nezadávají - výpočet s nimi dále nepočítá a střední Teplota den je nahrazena teplotou interiéru a Teplota v noci je nahrazena teplotou útlumu
I28: DÍLČÍ VÝSLEDEK (více na listu výsledky)
I29: Udržovací výkon pro bazén (pro návrh zdroje) | M29: =D85 -> 1.5
I30: Pozor: Jedná se o udržovací výkon, ne nabíjecí po napouštění
C34: ZADÁNÍ - ORIENTAČNÍ VÝPOČET VÝKONU BAZÉNOVÉ VZT JEDNOTKY
C37: VÝMĚNA VZDUCHU | J37: PRODUKCE VLHKOSTI
C38: plný provoz | D38: 1 | J38: provoz/typ bazénu
C39: klidový režim | D39: 0.5 | F39: minimální dop. výměna 0,5h-1 | J39: bazény RD s malou obsazeností
C41: Počet osob v bazénu | J41: produkce vlhkosti člověkem
C42: Provoz | D42: 0 | F42: zadat pouze pro veřejné bazény | J42: člověk při středně těžké práci
C43: Klidový režim | D43: 0
J44: korekce na vodní odpar
C45: čerstvý vzduch/os | D45: 75 | F45: (min hodnota 25m3/h) | J45: 5
C48: TEPELNÁ ZTRÁTA OBJEKTU
C49: tep ztráta [W/m2] | E49: 45
C50: tep zisk [W/m2] | E50: 30
C51: Cekové tepelné ztráty/zisky objektu
C52: tepelné ztráty - celkem | E52: =D9*D8*E49/1000 -> 6.75
C53: tepelné zisky - celkem | E53: =D9*D8*E50/1000 -> 4.5
C55: VZT jednotka - parametry
C56: účinnost ZZT | E56: 80
C57: Co obsluhujeme VZT jednotkou kromě výměny vzduchu
C58: vytápěno VZT jednotkou | E58: ne | F58: -> | G58: dt vyústky | H58: 4
C59: chlazení VZT jednotkou | E59: ne | F59: -> | G59: dt vyústky | H59: 2
C60: Množství vzduchu - vytápění | E60: =Vypocet!H49 -> 0
C61: Množství vzduchu - chlazení | E61: =Vypocet!H50 -> 0
C62: množství čerstvého vzduchu | E62: 0.3
C68: PODROBNÉ VÝSLEDKY
C72: Celkové množství odpařené vody
C73: odkrytý bazén | D73: =Vypocet!D37/1000 -> 3.335547747 | E73: kg/h | G73: Poměr
C74: zakrytý/klidný bazén | D74: =Vypocet!P37/1000 -> 0.1719563298 | E74: kg/h | G74: =D73/D74 -> 19.39764445 | H74: x menší odpar
C77: Ohřev bazénové vody
C78: Q,hlad | D78: ='udržovací výkon'!C30 -> 52.4137665 | E78: kWh/měs | G78: měsíční potřeba tepla na ztráty přestupem tepla z vodní hladiny
C79: Q,stěn | D79: ='udržovací výkon'!C31 -> 5.823751833 | E79: kWh/měs | G79: měsíční potřeba tepla pro pokrytí ztráty tepla přestupem (dno a stěny bazénu)
C80: Q,čerst | D80: ='udržovací výkon'!C7 -> 0 | E80: kWh/měs | G80: měsíční potřeba tepla na ohřev přiváděné studené vody
C81: Qcelk | D81: ='udržovací výkon'!C33 -> 58.23751833 | E81: kWh/měs | G81: měsíční potřeba tepla pro celý bazén
C82: Q celkem /rok | D82: =D81*K22 -> 698.85022 | E82: kWh/rok | G82: roční spotřeba energie bazénu - počítá se 100% současností
C84: Udržovací výkon pro bazén (pro návrh zdroje)
C85: výkon | D85: =IF('udržovací výkon'!C34<1.5,1.5,'udržovací výkon'!C34) -> 1.5 | E85: kW | G85: POZOR: Jedná se o udržovací výkon pro návrh zdroje. Je nutné rozmyslet jaký bude požadavek na plný nabíjecí pro dimenzování výměníku v případě ohřívání vody při napuštění bazénu čerstvou vodou
C87: Vzduchotechnika
C88: Výkon VZT - zima | D88: =Vypocet!T49 -> 930 | E88: m3/h
C89: Výkon VZT - léto | D89: =IF(Vypocet!H50=0,'VZT - bazén'!D88,Vypocet!H50) -> 930 | E89: m3/h
C91: max výkon VZT jedn. | D91: =MAX(D88:D89) -> 930 | E91: m3/h
C93: Výkon ohřívače VZT | D93: =Vypocet!T56 -> 3.81982 | E93: kW
C94: Výkon chladiče VZT | D94: =Vypocet!X50 -> 0 | E94: kW

Sheet udržovací výkon
A1: udržovací výkon
A3: ohřev bazénové vody | B3: Qcelkem | C3: =SUM(C6:C8) -> 48.28873987 | D3: kWh/měs. | E3: provoz | G3: mimo
B4: Výměník | C4: =C3/24/C10 -> 0.2012030828 | D4: kW | E4: odpar | F4: přestup | G4: odpar | H4: přestup | I4: slunce
A6: měsíční potřeba tepla na ztráty přestupem tepla z vodní hladiny | B6: Qp,z | C6: =C10/1000*C11*(C12*C14*(C19-C22)*C28/3600+C26*C14*(C15-C17))+C10/1000*(24-C11)*(C13*C14*(C19-C22)*C28/3600+C26*C14*(C15-C17))-0.85*C10*C27*C14 -> 43.45986588 | D6: kWh/měs. | E6: =C10/1000*C11*(C12*C14*(C19-C22)*C28/3600) -> 61.27916937 | F6: =C10/1000*C11*(C26*C14*(C15-C17)) -> -2.7 | G6: =C10/1000*(24-C11)*(C13*C14*(C19-C22)*C28/3600) -> 46.98069652 | H6: =C10/1000*(24-C11)*(C26*C14*(C15-C17)) -> -62.1 | I6: =-0.85*C10*C27*C14 -> 0
A7: měsíční potřeba tepla na ohřev přiváděné studené vody | B7: Qp,sv | C7: =C39*C40*C41*C42*(C44-C43)/3600000 -> 0 | D7: kWh/měs.
A8: měsíční potřeba tepla pro pokrytí ztráty tepla přestupem (dno a stěny bazénu) | B8: Qp,p | C8: =(C6+C7)*0.1/0.9 -> 4.828873987 | D8: kWh/měs. | E8: cca 10%
A10: počet dní v měsíci | B10: m | C10: ='VZT - bazén'!K20 -> 10 | D10: dní | F10: eulerova konstanta | H10: e | I10: 2.718281828
A11: denní provozní doba bazénu | B11: Tp | C11: ='VZT - bazén'!K21 -> 1 | D11: hod
A12: součinitel přenosu - provoz | B12: Bp | C12: =E12 -> 0.0004166666667 | D12: kg/h.m2.Pa | E12: =Vypocet!D28/36000 -> 0.0004166666667
A13: součinitel přenosu - mimo provoz (zakrytý 0; odkrytý 0,00029) | B13: Bn | C13: =E13 -> 1.388888889e-05 | D13: kg/h.m2.Pa | E13: =Vypocet!S35/36000 -> 1.388888889e-05
A14: plocha vodní hladiny | B14: Ab | C14: =Vypocet!D29 -> 18 | D14: m2
A15: teplota bazénové vody při provozu | B15: t_w,p | C15: =Vypocet!W6 -> 28 | D15: °C
A16: teplota bazénové vody mimo provoz | B16: t_w,n | C16: =C15-2 -> 26 | D16: °C
A17: střední teplota venkovního vduchu (den) - provoz | B17: t_es | C17: =IF('VZT - bazén'!K10="vnitřní",'VZT - bazén'!D13,'VZT - bazén'!D21) -> 29 | D17: °C | E17: rh | F17: ='VZT - bazén'!D14/100 -> 0.65
A18: střední teplota venkovního vduchu (noc) - klidový režim | B18: t_en | C18: =IF('VZT - bazén'!K10="vnitřní",'VZT - bazén'!D15,'VZT - bazén'!D22) -> 27 | D18: °C | E18: rh | F18: ='VZT - bazén'!D16/100 -> 0.55
A19: tlak syté vodní páry při teplotě vzduchu rovné bazénu (při hladině) - provoz | B19: p_v | C19: =$I$10^((1500.3+23.5*C15)/(234+C15)) -> 3781.160528 | D19: Pa
A20: tlak syté vodní páry při teplotě vzduchu rovné bazénu (při hladině) - útlum | B20: p_v_utlum | C20: =$I$10^((1500.3+23.5*C16)/(234+C16)) -> 3362.313694
A21: tlak nasycené vodní páry při střednívenkovní teplotě vzduchu u bazénu - provoz | B21: p_v - ti_te | C21: =$I$10^((1500.3+23.5*C17)/(234+C17)) -> 4007.077656 | D21: Pa
A22: tlak vodní páry při venkovní teplotě a vlhkosti v příslušné části den | B22: p_v_ten | C22: =C21*F17 -> 2604.600476 | D22: Pa
A23: tlak nasycené vodní páry při střednívenkovní teplotě vzduchu u bazénu mimo provoz | B23: p_v - ti_te | C23: =$I$10^((1500.3+23.5*C18)/(234+C18)) -> 3566.39423 | D23: Pa
A24: tlak vodní páry při venkovní teplotě a vlhkosti - klidový utlumovy rezim | B24: p_v_ten | C24: =C23*F18 -> 1961.516827 | D24: Pa
A26: součinitel přestupu tepla mezi hladinou a prostředím | B26: a_e | C26: 15 | D26: W/m2.K
A27: energie slunečního záření | B27: H_den | C27: ='VZT - bazén'!K26 -> 0 | D27: kWh/m2.den | F27: nutné upravit
A28: výparné teplo vody | B28: l_w | C28: 2500000 | D28: J/kg | F28: venkovní bazén | H28: 5 | I28: kWh/m2.den
F29: vnitřní | G29: ??? | H29: 0.5 | I29: kWh/m2.den
A30: měsíční potřeba tepla na ztráty přestupem tepla z vodní hladiny | C30: =C10/1000*C11*(C12*C14*(C19-C22)*C28/3600+C26*C14*(C15-C17))+C10/1000*(24-C11)*(C13*C14*(C20-C24)*C28/3600+C26*C14*(C16-C18))-0.85*C10*C27*C14 -> 52.4137665 | D30: kWh/měsíc
A31: měsíční potřeba tepla pro pokrytí ztráty tepla přestupem (dno a stěny bazénu) | C31: =(C30+C7)*0.1/0.9 -> 5.823751833 | D31: kWh/měsíc
C32: optimalizace pro útlomévý výkon
A33: ohřev bazénové vody | C33: =C30+C7+C31 -> 58.23751833 | D33: kWh/měsíc
B34: Výměník | C34: =C33/24/C10 -> 0.2426563264 | D34: kW
A39: počet plyvců v měsíci | B39: k | C39: ='VZT - bazén'!D42 -> 0 | D39: osob
A40: měrná potřeba čisté vody na návštěvníka | B40: Vsv,os | C40: 0.06 | D40: m3/os
A41: hustota vody | B41: Ro | C41: 995.6 | D41: kg/m3
A42: měrná tepelná kapacita | B42: c | C42: 4180 | D42: J/kg.K
A43: teplota studené vody | B43: t_sv | C43: 12 | D43: °C
A44: teplota bazénové vody | B44: t_w | C44: =C15 -> 28 | D44: °C
B47: 07 | C47: 08 | D47: 09 | E47: 10 | F47: 11 | G47: 12 | H47: 01 | I47: 02 | J47: 03 | K47: 04 | L47: 05 | M47: 06
B48: 19.19032258 | C48: 21.17096774 | D48: 12.66333333 | E48: 7.996774194 | F48: 6.57 | G48: 4.567741935 | H48: -1.290322581 | I48: 2.420689655 | J48: 2.9 | K48: 7.203333333 | L48: 13.23870968 | M48: 16.56
B49: 42338.78053 | C49: 39938.78053 | D49: 50182.78053 | E49: 55782.6515 | F49: 57458.78053 | G49: 59858.78053 | H49: 66938.78053 | I49: 62498.78053 | J49: 61898.78053 | K49: 56738.78053 | L49: 49538.78053 | M49: 45458.78053 | N49: =SUM(B49:M49)/1000 -> 648.6332374 | O49: MWh/rok

Sheet Vypocet
B1: Legenda | E1: hodnotu nutno zadat | J1: venkovní
E2: hodnota se vypočítává | J2: vnitřní
E3: pomocná hodnota
A4: Parametry vzduchu | G4: interier klidovy rezim | T4: teplota vody v bazenu
A5: Interiér | B5: ti | G5: Interiér | H5: ti | M5: Exteriér | N5: te | P5: minimální teplota -20 | T5: tw
A6: teplota | C6: ti | D6: ='VZT - bazén'!D13 -> 29 | E6: °C | G6: teplota | I6: ti | J6: ='VZT - bazén'!D15 -> 27 | K6: °C | M6: teplota | O6: te | P6: ='VZT - bazén'!D19 -> -12 | Q6: °C | T6: teplota | V6: ti | W6: =D22 -> 28 | X6: °C
A7: relativní vlhkost | C7: rhi | D7: ='VZT - bazén'!D14 -> 65 | E7: % | G7: relativní vlhkost | I7: rhi | J7: ='VZT - bazén'!D16 -> 55 | K7: % | M7: relativní vlhkost | O7: rhe | P7: ='VZT - bazén'!D20 -> 100 | Q7: % | T7: relativní vlhkost | V7: rhi | W7: 65 | X7: %
A8: entalpie s.v. | C8: hsvi | D8: =Konstanty!$F$2*Teplota -> 29290 | E8: J/kg | G8: entalpie s.v. | I8: hsvi | J8: =Konstanty!$F$2*J6 -> 27270 | K8: J/kg | M8: entalpie s.v. | O8: hsve | P8: =Konstanty!$F$2*te -> -12120 | Q8: J/kg | T8: entalpie s.v. | V8: hsvi | W8: =Konstanty!$F$2*W6 -> 28280 | X8: J/kg
A9: entalpie v.p. | C9: hvpi | D9: =$D$16*(Konstanty!$F$3*Teplota+Konstanty!$F$4) -> 4612.814159 | E9: J/kg | G9: entalpie v.p. | I9: hvpi | J9: =$D$16*(Konstanty!$F$3*J6+Konstanty!$F$4) -> 4551.984387 | K9: J/kg | M9: entalpie v.p. | O9: hvpe | P9: =P16*(Konstanty!F3*P6+Konstanty!F4) -> 312.4789744 | Q9: J/kg | T9: entalpie v.p. | V9: hvpi | W9: =$D$16*(Konstanty!$F$3*W6+Konstanty!$F$4) -> 4582.399273 | X9: J/kg
A10: entalpie | C10: hi | D10: =D8+D9 -> 33902.81416 | E10: J/kg | G10: entalpie | I10: hi | J10: =J8+J9 -> 31821.98439 | K10: J/kg | M10: entalpie | O10: he | P10: =IF(P8<0,P9-P8,P8+P9) -> 12432.47897 | Q10: J/kg | T10: entalpie | V10: hi | W10: =W8+W9 -> 32862.39927 | X10: J/kg
D11: =D10/1000 -> 33.90281416 | E11: kJ/kg | J11: =J10/1000 -> 31.82198439 | K11: kJ/kg | P11: =P10/1000 -> 12.43247897 | Q11: kJ/kg | W11: =W10/1000 -> 32.86239927 | X11: kJ/kg
A12: tlak nasycené vodní páry | C12: p''vpi | D12: =Konstanty!$F$12^((1500.3+23.5*D6)/(234+D6)) -> 4007.077656 | E12: Pa | G12: tlak nasycené vodní páry | I12: p''vpi | J12: =Konstanty!$F$12^((1500.3+23.5*J6)/(234+J6)) -> 3566.39423 | K12: Pa | M12: tlak nasycené vodní páry | O12: p''vpe | P12: =Konstanty!$F$12^((1500.3+23.5*P6)/(234+P6)) -> 241.7339733 | Q12: Pa | T12: tlak nasycené vodní páry | V12: p''vpi | W12: =Konstanty!$F$12^((1500.3+23.5*W6)/(234+W6)) -> 3781.160528 | X12: Pa | Z12: =2.718^(28.926-(6148/(273.15+te))) -> 217.7649153
A13: tlak vodní páry | C13: pvpi | D13: =(D7/100)*D12 -> 2604.600476 | E13: Pa | G13: tlak vodní páry | I13: pvpi | J13: =(J7/100)*J12 -> 1961.516827 | K13: Pa | M13: tlak vodní páry | O13: pvpe | P13: =(P7/100)*P12 -> 241.7339733 | Q13: Pa | T13: tlak vodní páry | V13: pvpi | W13: =(W7/100)*W12 -> 2457.754343 | X13: Pa
A14: tlak suchého vzduchu | C14: psvi | D14: =D18*Konstanty!$F$5*(Teplota+273.15) -> 98011.43513 | E14: Pa | G14: tlak suchého vzduchu | I14: psvi | J14: =J18*Konstanty!$F$5*(J6+273.15) -> 97965.80662 | K14: Pa | M14: tlak suchého vzduchu | O14: psve | P14: =P18*Konstanty!F5*(P6+273.15) -> 97980.87738 | Q14: Pa | T14: tlak suchého vzduchu | V14: psvi | W14: =W18*Konstanty!$F$5*(W6+273.15) -> 98032.84995 | X14: Pa | Z14: (93*T-3153,5)/(T-39,17)
A15: tlak směsi vlhkého vzduchu | C15: pi | D15: =D13+D14 -> 100616.0356 | E15: Pa | G15: tlak směsi vlhkého vzduchu | I15: pi | J15: =J13+J14 -> 99927.32345 | K15: Pa | M15: tlak směsi vlhkého vzduchu | O15: pe | P15: =P13+P14 -> 98222.61135 | Q15: Pa | T15: tlak směsi vlhkého vzduchu | V15: pi | W15: =W13+W14 -> 100490.6043 | X15: Pa | Z15: =(93*te-3153.5)/(te-39.17) -> 83.43756107
A16: měrná vlhkost vzduchu | C16: xi | D16: =(Konstanty!$F$5/Konstanty!$F$6)*(D13/D14) -> 0.01652982928 | E16: kg/kg s.v. | G16: měrná vlhkost vzduchu | I16: xi | J16: =(Konstanty!$F$5/Konstanty!$F$6)*(J13/J14) -> 0.01245436302 | K16: kg/kg s.v. | M16: měrná vlhkost vzduchu | O16: xe | P16: =(Konstanty!F5/Konstanty!F6)*(P13/P14) -> 0.001534618281 | Q16: kg/kg s.v. | T16: měrná vlhkost vzduchu | V16: xi | W16: =(Konstanty!$F$5/Konstanty!$F$6)*(W13/W14) -> 0.0155944781 | X16: kg/kg s.v.
D17: =D16*1000 -> 16.52982928 | E17: g/kg s.v. | J17: =J16*1000 -> 12.45436302 | K17: g/kg s.v. | P17: =P16*1000 -> 1.534618281 | Q17: g/kg s.v. | W17: =W16*1000 -> 15.5944781 | X17: g/kg s.v.
A18: hustota vzduchu při t | D18: =VLOOKUP(Teplota,Tabulky!$V$15:$AF$75,9,0) -> 1.13 | E18: kg/m3 | G18: hustota vzduchu při t | J18: =VLOOKUP(J6,Tabulky!V15:AF75,9,0) -> 1.137 | K18: kg/m3 | M18: hustota vzduchu při t | P18: =VLOOKUP(te,Tabulky!V15:AF75,9,0) -> 1.307 | Q18: kg/m3 | T18: hustota vzduchu při t | W18: =VLOOKUP(W6,Tabulky!$V$15:$AF$75,9,0) -> 1.134 | X18: kg/m3
A20: Bazén | I20: rozměry bazénu
A21: Teplota vody | C21: tsniz | D21: ='VZT - bazén'!K14 -> 1 | E21: °C | F21: snížení teploty vody (dop 2-3°C) | I21: délka bazén | J21: a | K21: ='VZT - bazén'!K8 -> 6 | L21: m
A22: tvz-(2-3)°C | C22: tvod | D22: =D6-D21 -> 28 | E22: °C | I22: šířka bazén | J22: b | K22: ='VZT - bazén'!K9 -> 3 | L22: m
A24: Mn. odpařené vody
A25: mw=ε*A*(p´´vp-pvp) | C25: mw | D25: =D28*$D$29*($W$12/100-$D$13/100) -> 3176.71214 | E25: g/h
D26: =D25/1000 -> 3.17671214 | E26: kg/h | I26: budova
A27: typ bazenu | D27: ='VZT - bazén'!J39 -> bazény RD s malou obsazeností | I27: délka | J27: a | K27: ='VZT - bazén'!D9 -> 15 | L27: m | U27: ano
A28: mnozstvi odp vody | D28: =VLOOKUP('VZT - bazén'!J39,Tab_souc_odparu_bazen,7,0) -> 15 | H28: [g/(hPa.m2.h)] | I28: šířka | J28: b | K28: ='VZT - bazén'!D8 -> 10 | L28: m | U28: ne
A29: plocha bazénu | C29: A | D29: =K21*K22 -> 18 | E29: m2 | I29: výška | J29: v | K29: ='VZT - bazén'!D10 -> 6.2 | L29: m | M29: Produkce vlhkosti osobami - klidový režim
A30: Objem haly | C30: V | D30: =K27*K28*K29 -> 930 | E30: m3 | M30: počet osob v bazénu | O30: nos | P30: ='VZT - bazén'!D43 -> 0
M31: množství vlhkosti | O31: mos | P31: =P30*100 -> 0 | Q31: g/h
A32: Produkce vlhkosti osobami - v provozu | P32: =P31/1000 -> 0 | Q32: kg/h
A33: počet osob v bazénu | C33: nos | D33: ='VZT - bazén'!D42 -> 0 | E33: počet | G33: Produkce vlhkosti člověkem | P33: =P31/3600 -> 0 | Q33: g/s
A34: množství vlhkosti | C34: mos | D34: =D33*H35 -> 0 | E34: g/h | G34: ='VZT - bazén'!J42 -> člověk při středně těžké práci
D35: =D34/1000 -> 0 | E35: kg/h | G35: =VLOOKUP('VZT - bazén'!J42,Tabulky!W146:Z148,4,0) -> 60-150 | H35: =IF(G35="60-150",105,IF(G35="30-60",45,225)) -> 105 | I35: g/h | M35: Produkce vlhkosti - klidový režim | P35: zakrývání? | Q35: ='VZT - bazén'!K17 -> ano | S35: =IF(Q35="ne",Tabulky!G4,Tabulky!G3) -> 0.5 | T35: epsilon pro klid
D36: =D34/3600 -> 0 | E36: g/s | G36: rozmezí | H36: průměr | M36: množství odpařené vody | O36: mw | P36: =IF(Q35="ano",Tabulky!$G$3*$D$29*($W$12/100-$J$13/100),Tabulky!$G$4*$D$29*($W$12/100-$J$13/100)) -> 163.7679331 | Q36: g/h
A37: celkové množství odpařené vody | D37: =(D25+D34)*(I37/100+1) -> 3335.547747 | E37: g/h | H37: korekce | I37: 5 | J37: % | M37: celkové množství odpařené vody | P37: =(P36+P31)*(I37/100+1) -> 171.9563298 | Q37: g/h
A38: Dimenzování průtoku vzduchu bazénové větrací jednotky pro zátěž | M38: Dimenzování průtoku vzduchu bazénové větrací jednotky pro klidový režim
A39: z množství odpařené vody | M39: z množství odpařené vody
A40: požadovaná vlhkost přiváděná | C40: xpoz | D40: 10 | E40: g/kg | G40: doporučená hodnota 8-10 g/kg | M40: požadovaná vlhkost přiváděná | O40: xpoz | P40: =D40 -> 10 | Q40: g/kg | S40: doporučená hodnota 8-10 g/kg
C41: V1 | D41: =(D37)/(D18*(D17-D40)) -> 452.0504349 | E41: m3/h | I41: =D147 -> 0 | J41: g/kg s.v. | O41: V1 | P41: =(P36+P31)/(Konstanty!$F$8*(J17-5)) -> 17.93420959 | Q41: m3/h
A42: z objemu haly | M42: z objemu haly
A43: výměna vzduchu | C43: n | D43: ='VZT - bazén'!D38 -> 1 | E43: 1/h | M43: výměna vzduchu | O43: n | P43: ='VZT - bazén'!D39 -> 0.5 | Q43: 1/h
A44: V=n*VH | C44: V2 | D44: =D30*D43 -> 930 | E44: m3/h | M44: V=n*VH | O44: V2 | P44: =D30*P43 -> 465 | Q44: m3/h
A45: z tepelných zisků
B46: zátěž výparem | C46: Qzt.vypar | D46: =((D37/3600000)*Konstanty!F15)/1000 -> 2.091203129 | E46: kW | S46: max mn větraného vzduchu
J48: Vyústky
B49: tepelné ztráty | C49: Qzt | D49: ='VZT - bazén'!E52 -> 6.75 | E49: kW | F49: ='VZT - bazén'!E58 -> ne | H49: =IF(F49="ano",(D49*1000)/(L49*Konstanty!$F$2*Konstanty!$F$8)*3600,0) -> 0 | I49: m3/h | J49: dt topení | L49: 8 | M49: °C | N49: dt voda . Ohřívač | O49: 10 | P49: °C | S49: VZT - ohřev | T49: =MAX(D41,D44,H49) -> 930 | U49: m3/h | W49: VZT - chladič | X49: =H50 -> 0 | Y49: m3/h
B50: tepelné zisky | C50: Qzisk | D50: ='VZT - bazén'!E53+D46 -> 6.591203129 | E50: kW | F50: ='VZT - bazén'!E59 -> ne | H50: =IF(F50="ano",(D50*1000)/(L50*Konstanty!$F$2*Konstanty!$F$8)*3600,0) -> 0 | I50: m3/h | J50: dt chlazení | L50: 6 | M50: °C | N50: dt voda. Chladič | O50: 5 | P50: °C | T50: =P51/100 -> 0.8 | U50: % | X50: =(((X49*1.2*X51)/3600)*1010*(X53-X54))/1000+(((X49*1.2*(1-X51))/3600)*1010*(X52-X54))/1000 -> 0 | Y50: kW
B51: Množství vzduchu | C51: V3 | D51: =MAX(H49:H50) -> 0 | E51: m3/h | N51: účinnost VZT | O51: n | P51: ='VZT - bazén'!E56 -> 80 | Q51: °% | S51: te | T51: =P52 -> -12 | U51: °C | W51: cirkulace | X51: ='VZT - bazén'!E62 -> 0.3
A52: potřeba vzduchu pro osoby | O52: te | P52: =te -> -12 | Q52: °C | S52: tp | T52: ='VZT - bazén'!D13+'VZT - bazén'!H58 -> 33 | U52: °C | W52: ti | X52: 30 | Y52: °C
C53: V4 | D53: =D33*D54 -> 0 | O53: tZZT | S53: ti | T53: ='VZT - bazén'!D13 -> 29 | U53: °C | W53: te | X53: 34 | Y53: °C
A54: množství čerstvého vzduchu/osoba | D54: ='VZT - bazén'!D45 -> 75 | E54: m3/h/os | G54: doporučená hodnota při zátěži (min hodnota 25m3/h) | W54: tp | X54: ='VZT - bazén'!D13-'VZT - bazén'!H59 -> 27 | Y54: °C
S55: tzzt | T55: =((T53-T51)*T50)+T51 -> 20.8 | U55: °C
A56: Potřeba čerstvého vzduchu | D56: =IF(MAX(D41,D44,D51)>D53,"Ne","Ano") -> Ne | G56: nepočítá s tím dál samo! | T56: =(((T49*1.2)/3600)*1010*(T52-T55))/1000 -> 3.81982 | U56: kW
A57: Množství čerstvého vzduchu | D57: =IF(D56="ano",D53-MAX(D41,D44,D51),0) -> 0 | E57: m3/h | G57: pouze informativní charakter, množství V čerst rozhodne projektant
A59: průtok vzduchu | C59: V | D59: =MAX(D41,D44,D51) -> 930 | E59: m3/h | M59: průtok vzduchu | O59: V | P59: =MAX(P41,P44) -> 465 | Q59: m3/h
C60: V | D60: =D59/3600 -> 0.2583333333 | E60: m3/s | O60: V | P60: =P59/3600 -> 0.1291666667 | Q60: m3/s
G61: doporučená hodnota 8-10 g/kg s.v.
A62: množství odebrané měrné vlh | C62: Δx | D62: 1.652342482 | E62: g/kg s.v | G62: vstupní měrná vlhkost do int | I62: xvyst | J62: =D147 -> 0 | K62: g/kg s.v. | M62: množství odebrané měrné vlh | O62: Δx | P62: 1.5 | Q62: g/kg s.v.
E63: °C | M63: teplota chladiče | O63: tch | P63: 9 | Q63: °C
E64: % | M64: relativní vlhkost | O64: rhch | P64: 100 | Q64: %
M66: vstupní měrná vlhkost do int | O66: xvyst | P66: =P147 -> 0 | Q66: g/kg s.v.

Sheet Tabulky
A1: Součinitel odparu vody z vodní hladiny (100Pa) | G1: ε | I1: Produkce vlhkosti
G2: [g/(hPa.m2.h)] | I2: Zdroj | L2: Intezita
A3: vodní plocha zakryta folií | G3: 0.5 | L3: g/h
A4: klidná vodní hladina | G4: 5 | I4: člověk - lehká práce | L4: 30-60
A5: bazény RD s malou obsazeností | G5: 15 | I5: člověk - středně těžka práce | L5: 60-150
A6: bazény - normální provoz | G6: 20 | I6: člověk - těžká práce | L6: 150-300
A7: bazény s vodními atrakcemi | G7: 28 | I7: sprchování | L7: 2600
A8: bazény s vlnami | G8: 35
A9: tlak nasycene vodni pary nad vodou | E9: tlak nasycene vodni pary nad ledem | I9: Goff-Gratchova rovnice | L9: 10,79574*(1-(273,16/V15))+5,028*LOG(V15/273,16)+(1,50475*(10^-4))*(1-10^(-8,2969*((V15/273,16)-1)))+(0,42873*(10^-3))*(10^(4,76955*(1-(273,16/V15)))-1)+0,78614
A10: Teplota | B10: tlak syté páry | C10: Teplota | D10: tlak syté páry | E10: Teplota | F10: tlak syté páry | G10: Teplota | H10: tlak syté páry
I11: tabulka | M11: Tlaky syté páry vzduchu při konkrétní teplotě
A12: T | B12: Log(p´´vp) | C12: t | D12: p´´vp | E12: T | F12: Log(p´´vp) | G12: t | H12: p´´vp | I12: Teplota | J12: tlak syté páry | M12: Teplota | N12: tlak syté páry | P12: Teplota | Q12: tlak syté páry | V12: p (kPa) | W12: 84 | X12: 86 | Y12: 88 | Z12: 90 | AA12: 92 | AB12: 94 | AC12: 96 | AD12: 98 | AE12: 100 | AF12: 101.4
A13: [K] | C13: [°C] | D13: [Pa] | E13: [K] | G13: [°C] | H13: [Pa] | V13: h(m) | W13: 1502 | X13: 1315 | Y13: 1132 | Z13: 953 | AA13: 778 | AB13: 606 | AC13: 438 | AD13: 273 | AE13: 111 | AF13: 0
A14: 249.15 | B14: =10.79574*(1-(273.16/A14))+5.028*LOG10(A14/273.16)+(1.50475*(10^-4))*(1-10^(-8.2969*((A14/273.16)-1)))+(0.42873*(10^-3))*(10^(4.76955*(1-(273.16/A14)))-1)+0.78614 -> -0.4560561519 | C14: =A14-273.15 -> -24 | D14: =(10^B14)*100 -> 34.9899924 | E14: =G14+273.15 -> 249.15 | F14: =-9.09718*((273.16/E14)-1)-3.56654*(LOG10(273.16/E14))+0.876793*(1-(E14/273.16))+LOG10(6.1071) -> -0.1562766048 | G14: -24 | H14: =(10^F14)*100 -> 69.77878372 | I14: t | J14: p''vp | M14: t | N14: p''vp | O14: ln(p''vp) | P14: t | Q14: p''vp | R14: ln(p''vp) | V14: t (°C) | AG14: -
A15: 250.15 | B15: -0.3999315219 | C15: -23 | D15: 39.81699477 | E15: 250.15 | F15: -0.113410518 | G15: -23 | H15: 77.01751148 | I15: [°C] | J15: k[Pa] | M15: [°C] | N15: [Pa] | O15: [Pa] | P15: [°C] | Q15: [Pa] | R15: [Pa] | V15: -20 | W15: 1.156 | X15: 1.183 | Y15: 1.211 | Z15: 1.238 | AA15: 1.266 | AB15: 1.293 | AC15: 1.321 | AD15: 1.348 | AE15: 1.376 | AF15: 1.395 | AG15: 0 | AH15: =AF15-AF16 -> 0.005
A16: 251.15 | B16: -0.3442219654 | C16: -22 | D16: 45.26661657 | E16: 251.15 | F16: -0.07088669596 | G16: -22 | H16: 84.94020485 | I16: -15 | J16: 0.1651 | M16: -15 | N16: =Konstanty!$F$12^O16 -> 165.7348001 | O16: =28.926-(6148/(273.15+I16)) -> 5.110388921 | P16: -15 | Q16: =Konstanty!$F$12^R16 -> 165.7348001 | R16: =28.926-(6148/(273.15+P16)) -> 5.110388921 | V16: -19 | W16: 1.151 | X16: 1.179 | Y16: 1.206 | Z16: 1.234 | AA16: 1.261 | AB16: 1.288 | AC16: 1.316 | AD16: 1.343 | AE16: 1.371 | AF16: 1.39 | AG16: 0 | AH16: =AF16-AF17 -> 0.006
A17: 252.15 | B17: -0.2889224638 | C17: -21 | D17: 51.41354339 | E17: 252.15 | F17: -0.02870116424 | G17: -21 | H17: 93.60495434 | I17: -14 | J17: 0.181 | M17: -14 | N17: =Konstanty!$F$12^O17 -> 181.6874429 | O17: 5.202287864 | P17: -14.9 | Q17: =Konstanty!$F$12^R17 -> 167.2702624 | R17: 5.119610842 | V17: -18 | W17: 1.147 | X17: 1.174 | Y17: 1.201 | Z17: 1.229 | AA17: 1.256 | AB17: 1.283 | AC17: 1.311 | AD17: 1.338 | AE17: 1.365 | AF17: 1.384 | AG17: 0.001 | AH17: 0.005
A18: 253.15 | B18: -0.2340280896 | C18: -20 | D18: 58.3407369 | E18: 253.15 | F18: 0.01314998947 | G18: -20 | H18: 103.074204 | I18: -13 | J18: 0.1982 | M18: -13 | N18: =Konstanty!$F$12^O18 -> 199.0349226 | O18: 5.2934803 | P18: -14.8 | Q18: =Konstanty!$F$12^R18 -> 168.8187449 | R18: 5.128825624 | V18: -17 | W18: 1.142 | X18: 1.17 | Y18: 1.197 | Z18: 1.224 | AA18: 1.251 | AB18: 1.278 | AC18: 1.306 | AD18: 1.333 | AE18: 1.36 | AF18: 1.379 | AG18: 0.001 | AH18: 0.005
A19: 254.15 | B19: -0.1795340032 | C19: -19 | D19: 66.14027507 | E19: 254.15 | F19: 0.05467061672 | G19: -19 | H19: 113.4150312 | I19: -12 | J19: 0.217 | M19: -12 | N19: =Konstanty!$F$12^O19 -> 217.8865129 | O19: 5.383974344 | P19: -14.7 | Q19: =Konstanty!$F$12^R19 -> 170.3803473 | R19: 5.138033275 | V19: -16 | W19: 1.138 | X19: 1.165 | Y19: 1.192 | Z19: 1.219 | AA19: 1.246 | AB19: 1.273 | AC19: 1.3 | AD19: 1.328 | AE19: 1.355 | AF19: 1.374 | AG19: 0.001 | AH19: 0.006
A20: 255.15 | B20: -0.1254354508 | C20: -18 | D20: 74.91426953 | E20: 255.15 | F20: 0.09586450941 | G20: -18 | H20: 124.6994418 | I20: -11 | J20: 0.2374 | M20: -11 | N20: =Konstanty!$F$12^O20 -> 238.3590117 | O20: 5.47377799 | P20: -14.6 | Q20: =Konstanty!$F$12^R20 -> 171.9551701 | R20: 5.147233804 | V20: -15 | W20: 1.133 | X20: 1.16 | Y20: 1.187 | Z20: 1.214 | AA20: 1.241 | AB20: 1.268 | AC20: 1.295 | AD20: 1.322 | AE20: 1.349 | AF20: 1.368 | AG20: 0.001 | AH20: 0.005
A21: 256.15 | B21: -0.07172776193 | C21: -17 | D21: 84.77586663 | E21: 256.15 | F21: 0.136735401 | G21: -17 | H21: 137.0046795 | I21: -10 | J21: 0.2596 | M21: -10 | N21: =Konstanty!$F$12^O21 -> 260.5771835 | O21: 5.562899107 | P21: -14.5 | Q21: =Konstanty!$F$12^R21 -> 173.5433143 | R21: 5.156427218 | V21: -14 | W21: 1.129 | X21: 1.156 | Y21: 1.183 | Z21: 1.21 | AA21: 1.237 | AB21: 1.264 | AC21: 1.29 | AD21: 1.317 | AE21: 1.344 | AF21: 1.363 | AG21: 0.001 | AH21: 0.005
A22: 257.15 | B22: -0.01840634701 | C22: -16 | D22: 95.85033895 | E22: 257.15 | F22: 0.1772869675 | G22: -16 | H22: 150.4135521 | I22: -9 | J22: 0.2834 | M22: -9 | N22: =Konstanty!$F$12^O22 -> 284.6742225 | O22: 5.651345448 | P22: -14.4 | Q22: =Konstanty!$F$12^R22 -> 175.1448816 | R22: 5.165613527 | V22: -13 | W22: 1.125 | X22: 1.152 | Y22: 1.178 | Z22: 1.2 | AA22: 1.232 | AB22: 1.259 | AC22: 1.285 | AD22: 1.312 | AE22: 1.339 | AF22: 1.358 | AG22: 0.001 | AH22: 0.005
A23: 258.15 | B23: 0.03453330452 | C23: -15 | D23: 108.2762745 | E23: 258.15 | F23: 0.2175228287 | G23: -15 | H23: 165.0147739 | I23: -8 | J23: 0.3096 | M23: -8 | N23: =Konstanty!$F$12^O23 -> 310.7922388 | O23: 5.739124646 | P23: -14.3 | Q23: =Konstanty!$F$12^R23 -> 176.7599747 | R23: 5.174792737 | V23: -12 | W23: 1.12 | X23: 1.147 | Y23: 1.174 | Z23: 1.2 | AA23: 1.227 | AB23: 1.254 | AC23: 1.281 | AD23: 1.307 | AE23: 1.334 | AF23: 1.353 | AG23: 0.001 | AH23: 0.006
A24: 259.15 | B24: 0.08709562652 | C24: -14 | D24: 122.2068716 | E24: 259.15 | F24: 0.2574465495 | G24: -14 | H24: 180.9033251 | I24: -7 | J24: 0.3377 | M24: -7 | N24: =Konstanty!$F$12^O24 -> 339.0827653 | O24: 5.826244223 | P24: -14.2 | Q24: =Konstanty!$F$12^R24 -> 178.3886966 | R24: 5.183964858 | V24: -11 | W24: 1.116 | X24: 1.143 | Y24: 1.169 | Z24: 1.196 | AA24: 1.222 | AB24: 1.249 | AC24: 1.276 | AD24: 1.302 | AE24: 1.329 | AF24: 1.347 | AG24: 0.001 | AH24: 0.005
A25: 260.15 | B25: 0.139284978 | C25: -13 | D25: 137.8113471 | E25: 260.15 | F25: 0.2970616402 | G25: -13 | H25: 198.1808287 | I25: -6 | J25: 0.3682 | M25: -6 | N25: =Konstanty!$F$12^O25 -> 369.7072903 | O25: 5.912711585 | P25: -14.1 | Q25: =Konstanty!$F$12^R25 -> 180.0311511 | R25: 5.193129898 | V25: -10 | W25: 1.112 | X25: 1.138 | Y25: 1.165 | Z25: 1.191 | AA25: 1.218 | AB25: 1.244 | AC25: 1.271 | AD25: 1.297 | AE25: 1.324 | AF25: 1.342 | AG25: 0.001 | AH25: 0.005
A26: 261.15 | B26: 0.1911056452 | C26: -12 | D26: 155.2764685 | E26: 261.15 | F26: 0.3363715583 | G26: -12 | H26: 216.9559466 | I26: -5 | J26: 0.4012 | M26: -5 | N26: =Konstanty!$F$12^O26 -> 402.837812 | O26: 5.998534029 | P26: -14 | Q26: =Konstanty!$F$12^R26 -> 181.6874429 | R26: 5.202287864 | V26: -9 | W26: 1.108 | X26: 1.134 | Y26: 1.16 | Z26: 1.187 | AA26: 1.213 | AB26: 1.24 | AC26: 1.266 | AD26: 1.292 | AE26: 1.319 | AF26: 1.337 | AG26: 0.001 | AH26: 0.005
A27: 262.15 | B27: 0.2425618433 | C27: -11 | D27: 174.8082171 | E27: 262.15 | F27: 0.3753797093 | G27: -11 | H27: 237.3447935 | I27: -4 | J27: 0.4369 | M27: -4 | N27: =Konstanty!$F$12^O27 -> 438.6574201 | O27: 6.083718744 | P27: -13.9 | Q27: =Konstanty!$F$12^R27 -> 183.3576772 | R27: 5.211438766 | V27: -8 | W27: 1.104 | X27: 1.13 | Y27: 1.156 | Z27: 1.182 | AA27: 1.209 | AB27: 1.235 | AC27: 1.261 | AD27: 1.287 | AE27: 1.314 | AF27: 1.332 | AG27: 0.001 | AH27: 0.005
A28: 263.15 | B28: 0.2936577183 | C28: -10 | D28: 196.6335945 | E28: 263.15 | F28: 0.4140894473 | G28: -10 | H28: 259.4713714 | I28: -3 | J28: 0.4756 | M28: -3 | N28: =Konstanty!$F$12^O28 -> 477.3609013 | O28: 6.168272811 | P28: -13.8 | Q28: =Konstanty!$F$12^R28 -> 185.04196 | R28: 5.22058261 | V28: -7 | W28: 1.099 | X28: 1.126 | Y28: 1.152 | Z28: 1.178 | AA28: 1.204 | AB28: 1.23 | AC28: 1.256 | AD28: 1.283 | AE28: 1.309 | AF28: 1.327 | AG28: 0.002 | AH28: 0.005
A29: 264.15 | B29: 0.3443973485 | C29: -9 | D29: 221.0025825 | E29: 264.15 | F29: 0.4525040766 | G29: -9 | H29: 283.4680241 | I29: -2 | J29: 0.5173 | M29: -2 | N29: =Konstanty!$F$12^O29 -> 519.1553731 | O29: 6.252203209 | P29: -13.7 | Q29: =Konstanty!$F$12^R29 -> 186.740398 | R29: 5.229719406 | V29: -6 | W29: 1.095 | X29: 1.121 | Y29: 1.147 | Z29: 1.174 | AA29: 1.2 | AB29: 1.226 | AC29: 1.252 | AD29: 1.278 | AE29: 1.304 | AF29: 1.322 | AG29: 0.002 | AH29: 0.005
A30: 265.15 | B30: 0.3947847467 | C30: -8 | D30: 248.1902672 | E30: 265.15 | F30: 0.490626852 | G30: -8 | H30: 309.4759124 | I30: -1 | J30: 0.5624 | M30: -1 | N30: =Konstanty!$F$12^O30 -> 564.2609437 | O30: 6.335516811 | P30: -13.6 | Q30: =Konstanty!$F$12^R30 -> 188.4530986 | R30: 5.238849162 | V30: -5 | W30: 1.091 | X30: 1.117 | Y30: 1.143 | Z30: 1.169 | AA30: 1.195 | AB30: 1.221 | AC30: 1.247 | AD30: 1.273 | AE30: 1.299 | AF30: 1.317 | AG30: 0.002 | AH30: 0.005
A31: 266.15 | B31: 0.444823861 | C31: -7 | D31: 278.4991416 | E31: 266.15 | F31: 0.5284609801 | G31: -7 | H31: 337.645511 | I31: 0 | J31: 0.6107 | M31: 0 | N31: =Konstanty!$F$12^O31 -> 612.9114008 | O31: 6.418220392 | P31: -13.5 | Q31: =Konstanty!$F$12^R31 -> 190.1801698 | R31: 5.247971885 | V31: -4 | W31: 1.087 | X31: 1.113 | Y31: 1.139 | Z31: 1.165 | AA31: 1.191 | AB31: 1.217 | AC31: 1.242 | AD31: 1.268 | AE31: 1.294 | AF31: 1.312 | AG31: 0.002 | AH31: 0.005
A32: 267.15 | B32: 0.4945185769 | C32: -6 | D32: 312.2615973 | E32: 267.15 | F32: 0.5660096203 | G32: -6 | H32: 368.1371284 | I32: 1 | J32: 0.6565 | M32: 1 | N32: =Konstanty!$F$12^O32 -> 656.5612984 | O32: =23.58-(4044.2/(235.6+I32)) -> 6.487016061 | P32: -13.4 | Q32: =Konstanty!$F$12^R32 -> 191.9217207 | R32: 5.257087584 | V32: -3 | W32: 1.083 | X32: 1.109 | Y32: 1.135 | Z32: 1.16 | AA32: 1.186 | AB32: 1.212 | AC32: 1.238 | AD32: 1.264 | AE32: 1.289 | AF32: 1.307 | AG32: 0.002 | AH32: 0.004
A33: 268.15 | B33: 0.5438727188 | C33: -5 | D33: 349.8426216 | E33: 268.15 | F33: 0.6032758853 | G33: -5 | H33: 401.1214488 | I33: 2 | J33: 0.7054 | M33: 2 | N33: =Konstanty!$F$12^O33 -> 705.5348932 | O33: 6.558956229 | P33: -13.3 | Q33: =Konstanty!$F$12^R33 -> 193.6778607 | R33: 5.266196267 | V33: -2 | W33: 1.079 | X33: 1.105 | Y33: 1.131 | Z33: 1.156 | AA33: 1.182 | AB33: 1.208 | AC33: 1.233 | AD33: 1.259 | AE33: 1.285 | AF33: 1.303 | AG33: 0.003 | AH33: 0.005
A34: 269.15 | B34: 0.5928900509 | C34: -4 | D34: 391.6427135 | E34: 269.15 | F34: 0.640262842 | G34: -4 | H34: 436.7800986 | I34: 3 | J34: 0.7574 | M34: 3 | N34: =Konstanty!$F$12^O34 -> 757.7044319 | O34: 6.630293378 | P34: -13.2 | Q34: =Konstanty!$F$12^R34 -> 195.4487002 | R34: 5.275297942 | V34: -1 | W34: 1.075 | X34: 1.101 | Y34: 1.126 | Z34: 1.152 | AA34: 1.178 | AB34: 1.203 | AC34: 1.229 | AD34: 1.254 | AE34: 1.28 | AF34: 1.298 | AG34: 0.003 | AH34: 0.005
A35: 270.15 | B35: 0.6415742792 | C35: -3 | D35: 438.1010351 | E35: 270.15 | F35: 0.6769735129 | G35: -3 | H35: 475.3062367 | I35: 4 | J35: 0.8129 | M35: 4 | N35: =Konstanty!$F$12^O35 -> 813.247148 | O35: 6.701035058 | P35: -13.1 | Q35: =Konstanty!$F$12^R35 -> 197.2343502 | R35: 5.284392617 | V35: 0 | W35: 1.071 | X35: 1.097 | Y35: 1.122 | Z35: 1.148 | AA35: 1.173 | AB35: 1.199 | AC35: 1.224 | AD35: 1.25 | AE35: 1.275 | AF35: 1.293 | AG35: 0.003 | AH35: 0.005
A36: 271.15 | B36: 0.6899290524 | C36: -2 | D36: 489.6988142 | E36: 271.15 | F36: 0.7134108761 | G36: -2 | H36: 516.9051702 | I36: 5 | J36: 0.8718 | M36: 5 | N36: =Konstanty!$F$12^O36 -> 872.3482338 | O36: 6.771188695 | P36: -13 | Q36: =Konstanty!$F$12^R36 -> 199.0349226 | R36: 5.2934803 | V36: 1 | W36: 1.067 | X36: 1.093 | Y36: 1.118 | Z36: 1.144 | AA36: 1.169 | AB36: 1.194 | AC36: 1.22 | AD36: 1.245 | AE36: 1.271 | AF36: 1.288 | AG36: 0.003 | AH36: 0.004
A37: 272.15 | B37: 0.7379579633 | C37: -1 | D37: 546.9630181 | E37: 272.15 | F37: 0.7495778667 | G37: -1 | H37: 561.7949962 | I37: 6 | J37: 0.9346 | M37: 6 | N37: =Konstanty!$F$12^O37 -> 935.2011028 | O37: 6.840761589 | P37: -12.9 | Q37: =Konstanty!$F$12^R37 -> 200.8505299 | R37: 5.302560999 | V37: 2 | W37: 1.063 | X37: 1.089 | Y37: 1.114 | Z37: 1.139 | AA37: 1.165 | AB37: 1.19 | AC37: 1.215 | AD37: 1.241 | AE37: 1.266 | AF37: 1.284 | AG37: 0.003 | AH37: 0.005
A38: 273.16 | B38: 0.78614 | C38: =A38-273.16 -> 0 | D38: 611.1390011 | E38: 273.15 | F38: 0.7854773773 | G38: 0 | H38: 610.2072698 | I38: 7 | J38: 1.001 | M38: 7 | N38: =Konstanty!$F$12^O38 -> 1002.007657 | O38: 6.909760923 | P38: -12.8 | Q38: =Konstanty!$F$12^R38 -> 202.6812854 | R38: 5.311634722 | V38: 3 | W38: 1.06 | X38: 1.085 | Y38: 1.11 | Z38: 1.135 | AA38: 1.161 | AB38: 1.186 | AC38: 1.211 | AD38: 1.236 | AE38: 1.261 | AF38: 1.279 | AG38: 0.004 | AH38: 0.005
A39: 274.15 | B39: 0.8330522974 | C39: =A39-273.15 -> 1 | D39: 680.8513413 | E39: 274.15 | F39: 0.8211122591 | G39: 1 | H39: 662.3876996 | I39: 8 | J39: 1.072 | M39: 8 | N39: =Konstanty!$F$12^O39 -> 1072.978559 | O39: 6.97819376 | P39: -12.7 | Q39: =Konstanty!$F$12^R39 -> 204.5273031 | R39: 5.320701478 | V39: 4 | W39: 1.056 | X39: 1.081 | Y39: 1.106 | Z39: 1.131 | AA39: 1.156 | AB39: 1.181 | AC39: 1.207 | AD39: 1.232 | AE39: 1.257 | AF39: 1.274 | AG39: 0.004 | AH39: 0.004
A40: 275.15 | B40: 0.8801246377 | C40: 2 | D40: 758.7953096 | E40: 275.15 | F40: 0.856485322 | G40: 2 | H40: 718.5968713 | I40: 9 | J40: 1.142 | M40: 9 | N40: =Konstanty!$F$12^O40 -> 1148.33351 | O40: 7.046067048 | P40: -12.6 | Q40: =Konstanty!$F$12^R40 -> 206.388698 | R40: 5.329761274 | V40: 5 | W40: 1.052 | X40: 1.077 | Y40: 1.102 | Z40: 1.127 | AA40: 1.152 | AB40: 1.177 | AC40: 1.202 | AD40: 1.227 | AE40: 1.252 | AF40: 1.27 | AG40: 0.004 | AH40: 0.005
A41: 276.15 | B41: 0.9268849522 | C41: 3 | D41: 845.0549543 | E41: 276.15 | F41: 0.891599336 | G41: 3 | H41: 779.1109999 | I41: 10 | J41: 1.227 | M41: 10 | N41: =Konstanty!$F$12^O41 -> 1228.301527 | O41: 7.113387622 | P41: -12.5 | Q41: =Konstanty!$F$12^R41 -> 208.2655855 | R41: 5.338814119 | V41: 6 | W41: 1.048 | X41: 1.073 | Y41: 1.098 | Z41: 1.123 | AA41: 1.148 | AB41: 1.173 | AC41: 1.198 | AD41: 1.223 | AE41: 1.248 | AF41: 1.265 | AG41: 0.004 | AH41: 0.004
A42: 277.15 | B42: 0.9733365722 | C42: 4 | D42: 940.4518653 | E42: 277.15 | F42: 0.9264570317 | G42: 4 | H42: 844.2227119 | I42: 11 | J42: 1.312 | M42: 11 | N42: =Konstanty!$F$12^O42 -> 1313.121237 | O42: 7.180162206 | P42: -12.4 | Q42: =Konstanty!$F$12^R42 -> 210.158082 | R42: 5.347860019 | V42: 7 | W42: 1.044 | X42: 1.069 | Y42: 1.094 | Z42: 1.119 | AA42: 1.144 | AB42: 1.169 | AC42: 1.194 | AD42: 1.219 | AE42: 1.243 | AF42: 1.261 | AG42: 0.004 | AH42: 0.005
A43: 278.15 | B43: 1.01948278 | C43: 5 | D43: 1045.882219 | E43: 278.15 | F43: 0.9610611008 | G43: 5 | H43: 914.2418569 | I43: 12 | J43: 1.401 | M43: 12 | N43: =Konstanty!$F$12^O43 -> 1403.041158 | O43: 7.246397415 | P43: -12.3 | Q43: =Konstanty!$F$12^R43 -> 212.0663048 | R43: 5.356898984 | V43: 8 | W43: 1.041 | X43: 1.066 | Y43: 1.09 | Z43: 1.115 | AA43: 1.14 | AB43: 1.165 | AC43: 1.189 | AD43: 1.214 | AE43: 1.239 | AF43: 1.256 | AG43: 0.005 | AH43: 0.004
A44: 279.15 | B44: 1.065326809 | C44: 6 | D44: 1162.322938 | E44: 279.15 | F44: 0.995414197 | G44: 6 | H44: 989.496351 | I44: 13 | J44: 1.497 | M44: 13 | N44: =Konstanty!$F$12^O44 -> 1498.319999 | O44: 7.312099759 | P44: -12.2 | Q44: =Konstanty!$F$12^R44 -> 213.9903715 | R44: 5.365931021 | V44: 9 | W44: 1.037 | X44: 1.062 | Y44: 1.086 | Z44: 1.111 | AA44: 1.136 | AB44: 1.161 | AC44: 1.185 | AD44: 1.21 | AE44: 1.235 | AF44: 1.252 | AG44: 0.005 | AH44: 0.005
A45: 280.15 | B45: 1.110871846 | C45: 7 | D45: 1290.838311 | E45: 280.15 | F45: 1.029518937 | G45: 7 | H45: 1070.333052 | I45: 14 | J45: 1.597 | M45: 14 | N45: =Konstanty!$F$12^O45 -> 1599.226959 | O45: 7.377275641 | P45: -12.1 | Q45: =Konstanty!$F$12^R45 -> 215.9304011 | R45: 5.374956139 | V45: 10 | W45: 1.033 | X45: 1.058 | Y45: 1.083 | Z45: 1.107 | AA45: 1.132 | AB45: 1.156 | AC45: 1.181 | AD45: 1.206 | AE45: 1.23 | AF45: 1.247 | AG45: 0.006 | AH45: 0.004
A46: 281.15 | B46: =10.79574*(1-(273.16/A46))+5.028*LOG10(A46/273.16)+(1.50475*(10^-4))*(1-10^(-8.2969*((A46/273.16)-1)))+(0.42873*(10^-3))*(10^(4.76955*(1-(273.16/A46)))-1)+0.78614 -> 1.156121034 | C46: 8 | D46: =(10^B46)*100 -> 1432.587092 | E46: =G46+273.15 -> 281.15 | F46: =-9.09718*((273.16/E46)-1)-3.56654*(LOG10(273.16/E46))+0.876793*(1-(E46/273.16))+LOG10(6.1071) -> 1.0633779 | G46: 8 | H46: =(10^F46)*100 -> 1157.118666 | I46: 15 | J46: 1.704 | M46: 15 | N46: =Konstanty!$F$12^O46 -> 1706.042031 | O46: 7.441931365 | P46: -12 | Q46: =Konstanty!$F$12^R46 -> 217.8865129 | R46: 5.383974344 | V46: 11 | W46: 1.03 | X46: 1.054 | Y46: 1.079 | Z46: 1.103 | AA46: 1.128 | AB46: 1.152 | AC46: 1.177 | AD46: 1.201 | AE46: 1.226 | AF46: 1.243 | AG46: 0.006 | AH46: 0.004
A47: 282.15 | B47: 1.201077466 | C47: 9 | D47: 1588.830128 | E47: 282.15 | F47: 1.096993629 | G47: 9 | H47: 1250.240689 | I47: 16 | J47: 1.817 | M47: 16 | N47: =Konstanty!$F$12^O47 -> 1819.056305 | O47: 7.506073132 | P47: -11.9 | Q47: =Konstanty!$F$12^R47 -> 219.8588272 | R47: 5.392985646 | V47: 12 | W47: 1.026 | X47: 1.051 | Y47: 1.075 | Z47: 1.099 | AA47: 1.124 | AB47: 1.148 | AC47: 1.173 | AD47: 1.197 | AE47: 1.222 | AF47: 1.239 | AG47: 0.007 | AH47: 0.005
A48: 283.15 | B48: 1.245744196 | C48: 10 | D48: 1760.938531 | E48: 283.15 | F48: 1.130368633 | G48: 10 | H48: 1350.108381 | I48: 17 | J48: 1.936 | M48: 17 | N48: =Konstanty!$F$12^O48 -> 1938.572287 | O48: 7.569707047 | P48: -11.8 | Q48: =Konstanty!$F$12^R48 -> 221.8474651 | R48: =28.926-(6148/(273.15+P48)) -> 5.401990052 | V48: 13 | W48: 1.023 | X48: 1.047 | Y48: 1.071 | Z48: 1.096 | AA48: 1.12 | AB48: 1.144 | AC48: 1.169 | AD48: 1.193 | AE48: 1.217 | AF48: 1.234 | AG48: 0.007 | AH48: 0.004
A49: 284.15 | B49: 1.290124231 | C49: 11 | D49: 1950.402439 | E49: 284.15 | F49: 1.163505386 | G49: 11 | H49: 1457.153775 | I49: 18 | J49: 2.062 | M49: 18 | N49: =Konstanty!$F$12^O49 -> 2064.90421 | O49: 7.632839117 | P49: -11.7 | Q49: =Konstanty!$F$12^R49 -> 223.8525485 | R49: 5.410987569 | V49: 14 | W49: 1.019 | X49: 1.043 | Y49: 1.068 | Z49: 1.092 | AA49: 1.116 | AB49: 1.14 | AC49: 1.165 | AD49: 1.189 | AE49: 1.213 | AF49: 1.23 | AG49: 0.008 | AH49: 0.004
A50: 285.15 | B50: 1.334220538 | C50: 12 | D50: 2158.840404 | E50: 285.15 | F50: 1.196406325 | G50: 12 | H50: 1571.832721 | I50: 19 | J50: 2.196 | M50: 19 | N50: =Konstanty!$F$12^O50 -> 2198.378353 | O50: 7.695475255 | P50: -11.6 | Q50: =Konstanty!$F$12^R50 -> 225.8741999 | R50: 5.419978207 | V50: 15 | W50: 1.015 | X50: 1.04 | Y50: 1.064 | Z50: 1.088 | AA50: 1.112 | AB50: 1.136 | AC50: 1.161 | AD50: 1.185 | AE50: 1.209 | AF50: 1.226 | AG50: 0.008 | AH50: 0.004
A51: 286.15 | B51: 1.378036039 | C51: 13 | D51: 2388.009437 | E51: 286.15 | F51: 1.229073857 | G51: 13 | H51: 1694.625969 | I51: 20 | J51: 2.337 | M51: 20 | N51: =Konstanty!$F$12^O51 -> 2339.33337 | O51: 7.757621283 | P51: -11.5 | Q51: =Konstanty!$F$12^R51 -> 227.912543 | R51: 5.428961972 | V51: 16 | W51: 1.012 | X51: 1.036 | Y51: 1.06 | Z51: 1.084 | AA51: 1.108 | AB51: 1.132 | AC51: 1.157 | AD51: 1.181 | AE51: 1.205 | AF51: 1.222 | AG51: 0.008 | AH51: 0.005
A52: 287.15 | B52: 1.421573618 | C52: 14 | D52: 2639.815765 | E52: 287.15 | F52: 1.261510355 | G52: 14 | H52: 1826.040286 | I52: 21 | J52: 2.485 | M52: 21 | N52: =Konstanty!$F$12^O52 -> 2488.120613 | O52: 7.819282931 | P52: -11.4 | Q52: =Konstanty!$F$12^R52 -> 229.967702 | R52: 5.437938873 | V52: 17 | W52: 1.008 | X52: 1.032 | Y52: 1.057 | Z52: 1.081 | AA52: 1.105 | AB52: 1.129 | AC52: 1.153 | AD52: 1.177 | AE52: 1.201 | AF52: 1.217 | AG52: 0.009 | AH52: 0.004
A53: 288.15 | B53: 1.464836119 | C53: 15 | D53: 2916.326329 | E53: 288.15 | F53: 1.293718157 | G53: 15 | H53: 1966.609609 | I53: 22 | J53: 2.642 | M53: 22 | N53: =Konstanty!$F$12^O53 -> 2645.104464 | O53: 7.880465839 | P53: -11.3 | Q53: =Konstanty!$F$12^R53 -> 232.039802 | R53: 5.446908917 | V53: 18 | W53: 1.005 | X53: 1.029 | Y53: 1.053 | Z53: 1.077 | AA53: 1.101 | AB53: 1.125 | AC53: 1.149 | AD53: 1.173 | AE53: 1.196 | AF53: 1.213 | AG53: 0.009 | AH53: 0.004
A54: 289.15 | B54: 1.507826345 | C54: 16 | D54: 3219.781083 | E54: 289.15 | F54: 1.325699572 | G54: 16 | H54: 2116.896243 | I54: 23 | J54: 2.808 | M54: 23 | N54: =Konstanty!$F$12^O54 -> 2810.662671 | O54: 7.941175561 | P54: -11.2 | Q54: =Konstanty!$F$12^R54 -> 234.128969 | R54: 5.455872113 | V54: 19 | W54: 1.002 | X54: 1.025 | Y54: 1.049 | Z54: 1.073 | AA54: 1.097 | AB54: 1.121 | AC54: 1.145 | AD54: 1.169 | AE54: 1.192 | AF54: 1.209 | AG54: 0.01 | AH54: 0.004
A55: 290.15 | B55: 1.55054706 | C55: 17 | D55: 3552.606127 | E55: 290.15 | F55: 1.357456877 | G55: 17 | H55: 2277.492089 | I55: 24 | J55: 2.982 | M55: 24 | N55: =Konstanty!$F$12^O55 -> 2985.186687 | O55: 8.001417565 | P55: -11.1 | Q55: =Konstanty!$F$12^R55 -> 236.2353297 | R55: 5.464828468 | V55: 20 | W55: 0.998 | X55: 1.022 | Y55: 1.046 | Z55: 1.069 | AA55: 1.093 | AB55: 1.117 | AC55: 1.141 | AD55: 1.165 | AE55: 1.188 | AF55: 1.205 | AG55: 0.011 | AH55: 0.004
A56: 291.15 | B56: 1.593000994 | C56: 18 | D56: 3917.427735 | E56: 291.15 | F56: 1.388992317 | G56: 18 | H56: 2449.019919 | I56: 25 | J56: 3.167 | M56: 25 | N56: =Konstanty!$F$12^O56 -> 3169.082007 | O56: 8.061197237 | P56: -11 | Q56: =Konstanty!$F$12^R56 -> 238.3590117 | R56: 5.47377799 | V56: 21 | W56: 0.995 | X56: 1.018 | Y56: 1.042 | Z56: 1.066 | AA56: 1.09 | AB56: 1.113 | AC56: 1.137 | AD56: 1.161 | AE56: 1.184 | AF56: 1.201 | AG56: 0.011 | AH56: 0.004
A57: 292.15 | B57: 1.635190835 | C57: 19 | D57: 4317.087337 | E57: 292.15 | F57: 1.420308109 | G57: 19 | H57: 2632.134688 | I57: 26 | J57: 3.36 | M57: 26 | N57: =Konstanty!$F$12^O57 -> 3362.768519 | O57: 8.120519878 | P57: -10.9 | Q57: =Konstanty!$F$12^R57 -> 240.5001435 | R57: 5.482720686 | V57: 22 | W57: 0.991 | X57: 1.015 | Y57: 1.049 | Z57: 1.062 | AA57: 1.086 | AB57: 1.109 | AC57: 1.133 | AD57: 1.157 | AE57: 1.18 | AF57: 1.197 | AG57: 0.012 | AH57: 0.004
A58: 293.15 | B58: 1.677119237 | C58: 20 | D58: 4754.657486 | E58: 293.15 | F58: 1.451406437 | G58: 20 | H58: 2827.524891 | I58: 27 | J58: 3.364 | M58: 27 | N58: =Konstanty!$F$12^O58 -> 3566.680849 | O58: 8.179390708 | P58: -10.8 | Q58: =Konstanty!$F$12^R58 -> 242.6588544 | R58: 5.491656566 | V58: 23 | W58: 0.988 | X58: 1.012 | Y58: 1.035 | Z58: 1.059 | AA58: 1.082 | AB58: 1.106 | AC58: 1.129 | AD58: 1.153 | AE58: 1.176 | AF58: 1.193 | AG58: 0.012 | AH58: 0.004
A59: 294.15 | B59: 1.718788818 | C59: 21 | D59: 5233.458903 | E59: 294.15 | F59: 1.482289458 | G59: 21 | H59: 3035.91395 | I59: 28 | J59: 3.778 | M59: 28 | N59: =Konstanty!$F$12^O59 -> 3781.268714 | O59: 8.237814871 | P59: -10.7 | Q59: =Konstanty!$F$12^R59 -> 244.8352745 | R59: 5.500585635 | V59: 24 | W59: 0.985 | X59: 1.008 | Y59: 1.032 | Z59: 1.055 | AA59: 1.079 | AB59: 1.102 | AC59: 1.125 | AD59: 1.149 | AE59: 1.172 | AF59: 1.189 | AG59: 0.013 | AH59: 0.004
A60: 295.15 | B60: 1.760202161 | C60: 22 | D60: 5757.07863 | E60: 295.15 | F60: 1.512959299 | G60: 22 | H60: 3258.061662 | I60: 29 | J60: 4.008 | M60: 29 | N60: =Konstanty!$F$12^O60 -> 4006.997273 | O60: 8.29579743 | P60: -10.6 | Q60: =Konstanty!$F$12^R60 -> 247.0295347 | R60: 5.509507903 | V60: 25 | W60: 0.981 | X60: 1.005 | Y60: 1.028 | Z60: 1.052 | AA60: 1.075 | AB60: 1.098 | AC60: 1.122 | AD60: 1.145 | AE60: 1.168 | AF60: 1.185 | AG60: 0.014 | AH60: 0.004
A61: 296.15 | B61: 1.801361814 | C61: 23 | D61: 6329.38938 | E61: 296.15 | F61: 1.543418061 | G61: 23 | H61: 3494.765672 | I61: 30 | J61: 4.241 | M61: 30 | N61: =Konstanty!$F$12^O61 -> 4244.347486 | O61: 8.353343373 | P61: -10.5 | Q61: =Konstanty!$F$12^R61 -> 249.241767 | R61: 5.518423377 | V61: 26 | W61: 0.978 | X61: 1.001 | Y61: 1.025 | Z61: 1.048 | AA61: 1.071 | AB61: 1.095 | AC61: 1.118 | AD61: 1.141 | AE61: 1.164 | AF61: 1.181 | AG61: 0.015 | AH61: 0.004
A62: 297.15 | B62: 1.842270291 | C62: 24 | D62: 6954.570132 | E62: 297.15 | F62: 1.573667814 | G62: 24 | H62: 3746.863002 | I62: 31 | J62: 4.491 | M62: 31 | N62: =Konstanty!$F$12^O62 -> 4493.816476 | O62: 8.410457614 | P62: -10.4 | Q62: =Konstanty!$F$12^R62 -> 251.4721039 | R62: 5.527332065 | V62: 27 | W62: 0.975 | X62: 0.998 | Y62: 1.021 | Z62: 1.045 | AA62: 1.068 | AB62: 1.091 | AC62: 1.114 | AD62: 1.137 | AE62: 1.16 | AF62: 1.177 | AG62: 0.016 | AH62: 0.004
A63: 298.15 | B63: 1.882930073 | C63: 25 | D63: 7637.128064 | E63: 298.15 | F63: 1.603710602 | G63: 25 | H63: 4015.231617 | I63: 32 | J63: 4.753 | M63: 32 | N63: =Konstanty!$F$12^O63 -> 4755.917887 | O63: 8.467144993 | P63: -10.3 | Q63: =Konstanty!$F$12^R63 -> 253.7206792 | R63: 5.536233974 | V63: 28 | W63: 0.972 | X63: 0.995 | Y63: 1.018 | Z63: 1.041 | AA63: 1.064 | AB63: 1.087 | AC63: 1.11 | AD63: 1.134 | AE63: 1.157 | AF63: 1.173 | AG63: 0.016 | AH63: 0.004
A64: 299.15 | B64: 1.923343609 | C64: 26 | D64: 8381.921877 | E64: 299.15 | F64: 1.633548443 | G64: 26 | H64: 4300.79204 | I64: 33 | J64: 5.029 | M64: 33 | N64: =Konstanty!$F$12^O64 -> 5031.182251 | O64: 8.523410276 | P64: -10.2 | Q64: =Konstanty!$F$12^R64 -> 255.9876272 | R64: 5.545129112 | V64: 29 | W64: 0.968 | X64: 0.991 | Y64: 1.015 | Z64: 1.038 | AA64: 1.061 | AB64: 1.084 | AC64: 1.107 | AD64: 1.13 | AE64: 1.153 | AF64: 1.169 | AG64: 0.017 | AH64: 0.004
A65: 300.15 | B65: 1.963513314 | C65: 27 | D65: 9194.1866 | E65: 300.15 | F65: 1.663183327 | G65: 27 | H65: 4604.509008 | I65: 34 | J65: 5.318 | M65: 34 | N65: =Konstanty!$F$12^O65 -> 5320.157357 | O65: 8.57925816 | P65: -10.1 | Q65: =Konstanty!$F$12^R65 -> 258.2730832 | R65: 5.554017487 | V65: 30 | W65: 0.956 | X65: 0.988 | Y65: 1.011 | Z65: 1.034 | AA65: 1.057 | AB65: 1.08 | AC65: 1.103 | AD65: 1.126 | AE65: 1.149 | AF65: 1.165 | AG65: 1.018 | AH65: 0.004
A66: 301.15 | B66: 2.003441573 | C66: 28 | D66: 10079.55996 | E66: 301.15 | F66: 1.692617218 | G66: 28 | H66: 4927.393183 | I66: 35 | J66: 5.522 | M66: 35 | N66: =Konstanty!$F$12^O66 -> 5623.408615 | O66: 8.634693274 | P66: -10 | Q66: =Konstanty!$F$12^R66 -> 260.5771835 | R66: 5.562899107 | V66: 31 | W66: 0.962 | X66: 0.985 | Y66: 1.008 | Z66: 1.031 | AA66: 1.054 | AB66: 1.077 | AC66: 1.1 | AD66: 1.122 | AE66: 1.145 | AF66: 1.161 | AG66: 1.019 | AH66: 0.003
A67: 302.15 | B67: 2.043130739 | C67: 29 | D67: 11044.1104 | E67: 302.15 | F67: 1.721852056 | G67: 29 | H67: 5270.502894 | I67: 36 | J67: 5.94 | M67: 36 | N67: =Konstanty!$F$12^O67 -> 5941.519434 | O67: 8.689720177 | P67: -9.9 | Q67: =Konstanty!$F$12^R67 -> 262.900065 | R67: 5.571773979 | V67: 32 | W67: 0.959 | X67: 0.982 | Y67: 1.005 | Z67: 1.027 | AA67: 1.05 | AB67: 1.073 | AC67: 1.096 | AD67: 1.119 | AE67: 1.142 | AF67: 1.158 | AG67: 0.02 | AH67: 0.004
A68: 303.15 | B68: 2.082583136 | C68: 30 | D68: 12094.36682 | E68: 303.15 | F68: 1.750889754 | G68: 30 | H68: 5634.945943 | I68: 37 | J68: 6.274 | M68: 37 | N68: =Konstanty!$F$12^O68 -> 6275.091592 | O68: 8.74434336 | P68: -9.8 | Q68: =Konstanty!$F$12^R68 -> 265.2418659 | R68: 5.580642111 | V68: 33 | W68: 0.956 | X68: 0.979 | Y68: 1.001 | Z68: 1.024 | AA68: 1.047 | AB68: 1.07 | AC68: 1.092 | AD68: 1.115 | AE68: 1.138 | AF68: 1.154 | AG68: 0.022 | AH68: 0.004
A69: 304.15 | B69: 2.121801057 | C69: 31 | D69: 13237.35016 | E69: 304.15 | F69: 1.779732201 | G69: 31 | H69: 6021.881446 | I69: 38 | J69: 6.624 | M69: 38 | N69: =Konstanty!$F$12^O69 -> 6624.745609 | O69: 8.798567251 | P69: -9.7 | Q69: =Konstanty!$F$12^R69 -> 267.6027249 | R69: 5.589503511 | V69: 34 | W69: 0.953 | X69: 0.975 | Y69: 0.998 | Z69: 1.021 | AA69: 1.043 | AB69: 1.066 | AC69: 1.089 | AD69: 1.111 | AE69: 1.134 | AF69: 1.15 | AG69: 1.023 | AH69: 0.004
A70: 305.15 | B70: 2.160786765 | C70: 32 | D70: 14480.60694 | E70: 305.15 | F70: 1.808381262 | G70: 32 | H70: 6432.521728 | I70: 39 | J70: 6.991 | M70: 39 | N70: =Konstanty!$F$12^O70 -> 6991.121128 | O70: 8.852396213 | P70: -9.6 | Q70: =Konstanty!$F$12^R70 -> 269.9827819 | R70: 5.598358186 | V70: 35 | W70: 0.95 | X70: 0.972 | Y70: 0.995 | Z70: 1.017 | AA70: 1.04 | AB70: 1.063 | AC70: 1.085 | AD70: 1.108 | AE70: 1.13 | AF70: 1.146 | AG70: 0.024 | AH70: 0.003
A71: 306.15 | B71: 2.199542495 | C71: =A71-273.15 -> 33 | D71: 15832.24476 | E71: 306.15 | F71: 1.836838777 | G71: 33 | H71: 6868.134264 | I71: 40 | J71: 7.375 | M71: 40 | N71: =Konstanty!$F$12^O71 -> 7374.877293 | O71: 8.905834543 | P71: -9.5 | Q71: =Konstanty!$F$12^R71 -> 272.3821775 | R71: 5.607206145 | V71: 36 | W71: 0.947 | X71: 0.969 | Y71: 0.992 | Z71: 1.014 | AA71: 1.037 | AB71: 1.059 | AC71: 1.082 | AD71: 1.104 | AE71: 1.127 | AF71: 1.143 | AG71: 0.026 | AH71: 0.004
A72: 307.15 | B72: 2.238070453 | C72: 34 | D72: 17300.97001 | E72: 307.15 | F72: 1.865106562 | G72: 34 | H72: 7330.043673 | I72: 41 | J72: 7.777 | M72: 41 | N72: =Konstanty!$F$12^O72 -> 7776.693125 | O72: 8.958886479 | P72: -9.4 | Q72: =Konstanty!$F$12^R72 -> 274.8010533 | R72: 5.616047393 | V72: 37 | W72: 0.943 | X72: 0.966 | Y72: 0.988 | Z72: 1.011 | AA72: 1.033 | AB72: 1.056 | AC72: 1.078 | AD72: 1.101 | AE72: 1.123 | AF72: 1.139 | AG72: 0.027 | AH72: 0.004
A73: 308.15 | B73: 2.276372818 | C73: 35 | D73: 18896.12781 | E73: 308.15 | F73: 1.893186413 | G73: 35 | H73: 7819.633753 | I73: 42 | J73: 8.198 | M73: 42 | N73: =Konstanty!$F$12^O73 -> 8197.267909 | O73: 9.011556196 | P73: -9.3 | Q73: =Konstanty!$F$12^R73 -> 277.2395518 | R73: 5.62488194 | V73: 38 | W73: 0.94 | X73: 0.963 | Y73: 0.958 | Z73: 1.008 | AA73: 1.03 | AB73: 1.052 | AC73: 1.075 | AD73: 1.097 | AE73: 1.12 | AF73: 1.135 | AG73: 0.028 | AH73: 0.003
A74: 309.15 | B74: 2.314451739 | C74: 36 | D74: 20627.7443 | E74: 309.15 | F74: 1.921080098 | G74: 36 | H74: 8338.349572 | I74: 43 | J74: 8.639 | M74: 43 | N74: =Konstanty!$F$12^O74 -> 8637.321571 | O74: 9.06384781 | P74: -9.2 | Q74: =Konstanty!$F$12^R74 -> 279.6978165 | R74: 5.633709794 | V74: 39 | W74: 0.937 | X74: 0.96 | Y74: 0.982 | Z74: 1.004 | AA74: 1.027 | AB74: 1.049 | AC74: 1.071 | AD74: 1.094 | AE74: 1.116 | AF74: 1.132 | AG74: 0.03 | AH74: 0.004
A75: 310.15 | B75: 2.352309342 | C75: 37 | D75: 22506.57145 | E75: 310.15 | F75: 1.948789368 | G75: 37 | H75: 8887.69961 | I75: 44 | J75: 9.1 | M75: 44 | N75: =Konstanty!$F$12^O75 -> 9097.595066 | O75: 9.115765379 | P75: -9.1 | Q75: =Konstanty!$F$12^R75 -> 282.1759916 | R75: 5.64253096 | V75: 40 | W75: 0.934 | X75: 0.957 | Y75: 0.979 | Z75: 1.001 | AA75: 1.023 | AB75: 1.046 | AC75: 1.068 | AD75: 1.09 | AE75: 1.112 | AF75: 1.128 | AG75: 0.031
A76: 311.15 | B76: 2.389947722 | C76: 38 | D76: 24544.13448 | E76: 311.15 | F76: 1.976315947 | G76: 38 | H76: 9469.257946 | P76: -9 | Q76: =Konstanty!$F$12^R76 -> 284.6742225 | R76: 5.651345448 | AH76: =AVERAGE(AH17:AH74) -> 0.004413793103
A77: 312.15 | B77: 2.42736895 | C77: 39 | D77: 26752.78199 | E77: 312.15 | F77: 2.003661541 | G77: 39 | H77: 10084.6665 | P77: -8.9 | Q77: =Konstanty!$F$12^R77 -> 287.1926555 | R77: 5.660153264
A78: 313.15 | B78: =10.79574*(1-(273.16/A78))+5.028*LOG10(A78/273.16)+(1.50475*(10^-4))*(1-10^(-8.2969*((A78/273.16)-1)))+(0.42873*(10^-3))*(10^(4.76955*(1-(273.16/A78)))-1)+0.78614 -> 2.464575073 | C78: 40 | D78: =(10^B78)*100 -> 29145.7391 | E78: =G78+273.15 -> 313.15 | F78: =-9.09718*((273.16/E78)-1)-3.56654*(LOG10(273.16/E78))+0.876793*(1-(E78/273.16))+LOG10(6.1071) -> 2.030827831 | G78: 40 | H78: =(10^F78)*100 -> 10735.63732 | P78: -8.8 | Q78: =Konstanty!$F$12^R78 -> 289.7314375 | R78: 5.668954416
A79: 314.15 | B79: 2.501568109 | C79: 41 | D79: 31737.16348 | E79: 314.15 | F79: 2.057816481 | G79: 41 | H79: 11423.95493 | P79: -8.7 | Q79: =Konstanty!$F$12^R79 -> 292.2907169 | R79: 5.677748913
A80: 315.15 | B80: 2.538350053 | C80: 42 | D80: 34542.20469 | E80: 315.15 | F80: 2.084629131 | G80: 42 | H80: 12151.47873 | P80: -8.6 | Q80: =Konstanty!$F$12^R80 -> 294.8706426 | R80: =28.926-(6148/(273.15+P80)) -> 5.686536761
A81: 316.15 | B81: 2.574922877 | C81: 43 | D81: 37577.06679 | E81: 316.15 | F81: 2.111267401 | G81: 43 | H81: 12920.14541 | P81: -8.5 | Q81: =Konstanty!$F$12^R81 -> 297.4713647 | R81: 5.695317967
A82: 317.15 | B82: 2.611288525 | C82: 44 | D82: 40859.07448 | E82: 317.15 | F82: 2.137732893 | G82: 44 | H82: 13731.97149 | P82: -8.4 | Q82: =Konstanty!$F$12^R82 -> 300.0930341 | R82: 5.70409254
A83: 318.15 | B83: 2.647448921 | C83: 45 | D83: 44406.74298 | E83: 318.15 | F83: 2.164027186 | G83: 45 | H83: 14589.05584 | P83: -8.3 | Q83: =Konstanty!$F$12^R83 -> 302.7358028 | R83: 5.712860487
A84: 319.15 | B84: 2.683405964 | C84: 46 | D84: 48239.85164 | E84: 319.15 | F84: 2.190151843 | G84: 46 | H84: 15493.58228 | P84: -8.2 | Q84: =Konstanty!$F$12^R84 -> 305.3998237 | R84: 5.721621815
A85: 320.15 | B85: 2.719161529 | C85: 47 | D85: 52379.52178 | E85: 320.15 | F85: 2.216108404 | G85: 47 | H85: 16447.82226 | P85: -8.1 | Q85: =Konstanty!$F$12^R85 -> 308.0852507 | R85: 5.730376533
A86: 321.15 | B86: 2.754717471 | C86: 48 | D86: 56848.29856 | E86: 321.15 | F86: 2.241898393 | G86: 48 | H86: 17454.13752 | P86: -8 | Q86: =Konstanty!$F$12^R86 -> 310.7922388 | R86: 5.739124646
A87: 322.15 | B87: 2.790075621 | C87: 49 | D87: 61670.23747 | E87: 322.15 | F87: 2.267523315 | G87: 49 | H87: 18514.98289 | P87: -7.9 | Q87: =Konstanty!$F$12^R87 -> 313.5209437 | R87: 5.747866164
A88: 323.15 | B88: 2.825237788 | C88: 50 | D88: 66870.99535 | E88: 323.15 | F88: 2.292984655 | G88: 50 | H88: 19632.90907 | P88: -7.8 | Q88: =Konstanty!$F$12^R88 -> 316.2715224 | R88: 5.756601093
A89: 324.15 | B89: 2.860205759 | C89: 51 | D89: 72477.92634 | E89: 324.15 | F89: 2.318283882 | G89: 51 | H89: 20810.5655 | P89: -7.7 | Q89: =Konstanty!$F$12^R89 -> 319.0441328 | R89: 5.765329441
A90: 325.15 | B90: 2.894981302 | C90: 52 | D90: 78520.18288 | E90: 325.15 | F90: 2.343422445 | G90: 52 | H90: 22050.70328 | P90: -7.6 | Q90: =Konstanty!$F$12^R90 -> 321.8389337 | R90: 5.774051214
A91: 326.15 | B91: 2.929566163 | C91: 53 | D91: 85028.82206 | E91: 326.15 | F91: 2.368401778 | G91: 53 | H91: 23356.1781 | P91: -7.5 | Q91: =Konstanty!$F$12^R91 -> 324.656085 | R91: 5.782766422
A92: 327.15 | B92: 2.963962065 | C92: 54 | D92: 92036.91751 | E92: 327.15 | F92: 2.393223296 | G92: 54 | H92: 24729.9533 | P92: -7.4 | Q92: =Konstanty!$F$12^R92 -> 327.4957476 | R92: 5.791475071
A93: 328.15 | B93: 2.998170714 | C93: 55 | D93: 99579.67717 | E93: 328.15 | F93: 2.417888398 | G93: 55 | H93: 26175.10291 | P93: -7.3 | Q93: =Konstanty!$F$12^R93 -> 330.3580835 | R93: 5.800177168
A94: 329.15 | B94: 3.032193795 | C94: 56 | D94: 107694.5671 | E94: 329.15 | F94: 2.442398465 | G94: 56 | H94: 27694.81478 | P94: -7.2 | Q94: =Konstanty!$F$12^R94 -> 333.2432555 | R94: 5.80887272
A95: 330.15 | B95: 3.066032972 | C95: 57 | D95: 116421.4414 | E95: 330.15 | F95: 2.466754863 | G95: 57 | H95: 29292.39371 | P95: -7.1 | Q95: =Konstanty!$F$12^R95 -> 336.1514278 | R95: 5.817561737
A96: 331.15 | B96: 3.099689892 | C96: 58 | D96: 125802.6797 | E96: 331.15 | F96: 2.49095894 | G96: 58 | H96: 30971.26472 | P96: -7 | Q96: =Konstanty!$F$12^R96 -> 339.0827653 | R96: 5.826244223
A97: 332.15 | B97: 3.133166181 | C97: 59 | D97: 135883.3299 | E97: 332.15 | F97: 2.515012031 | G97: 59 | H97: 32734.97629 | P97: -6.9 | Q97: =Konstanty!$F$12^R97 -> 342.0374342 | R97: 5.834920188
A98: 333.15 | B98: 3.166463447 | C98: 60 | D98: 146711.26 | E98: 333.15 | F98: 2.538915452 | G98: 60 | H98: 34587.20369 | P98: -6.8 | Q98: =Konstanty!$F$12^R98 -> 345.0156015 | R98: 5.843589638
A99: 334.15 | B99: 3.199583279 | C99: 61 | D99: 158337.3162 | E99: 334.15 | F99: 2.562670504 | G99: 61 | H99: 36531.75231 | P99: -6.7 | Q99: =Konstanty!$F$12^R99 -> 348.0174354 | R99: 5.85225258
A100: 335.15 | B100: 3.232527249 | C100: 62 | D100: 170815.4892 | E100: 335.15 | F100: 2.586278476 | G100: 62 | H100: 38572.56114 | P100: -6.6 | Q100: =Konstanty!$F$12^R100 -> 351.0431052 | R100: 5.860909023
A101: 336.15 | B101: 3.26529691 | C101: 63 | D101: 184203.0893 | E101: 336.15 | F101: 2.609740638 | G101: 63 | H101: 40713.70616 | P101: -6.5 | Q101: =Konstanty!$F$12^R101 -> 354.0927811 | R101: 5.869558972
A102: 337.15 | B102: 3.297893796 | C102: 64 | D102: 198560.9291 | E102: 337.15 | F102: 2.633058247 | G102: 64 | H102: 42959.40391 | P102: -6.4 | Q102: =Konstanty!$F$12^R102 -> 357.1666347 | R102: 5.878202437
A103: 338.15 | B103: 3.330319427 | C103: =A103-273.15 -> 65 | D103: 213953.5156 | E103: 338.15 | F103: 2.656232544 | G103: 65 | H103: 45314.015 | P103: -6.3 | Q103: =Konstanty!$F$12^R103 -> 360.2648383 | R103: 5.886839423
A104: 339.15 | B104: 3.362575303 | C104: 66 | D104: 230449.252 | E104: 339.15 | F104: 2.679264758 | G104: 66 | H104: 47782.04777 | P104: -6.2 | Q104: =Konstanty!$F$12^R104 -> 363.3875655 | R104: 5.895469938
A105: 340.15 | B105: 3.394662907 | C105: 67 | D105: 248120.6484 | E105: 340.15 | F105: 2.702156102 | G105: 67 | H105: 50368.16187 | P105: -6.1 | Q105: =Konstanty!$F$12^R105 -> 366.5349909 | R105: 5.90409399
A106: 341.15 | B106: 3.426583708 | C106: 68 | D106: 267044.5433 | E106: 341.15 | F106: 2.724907775 | G106: 68 | H106: 53077.17202 | P106: -6 | Q106: =Konstanty!$F$12^R106 -> 369.7072903 | R106: 5.912711585
A107: 342.15 | B107: 3.458339156 | C107: 69 | D107: 287302.3351 | E107: 342.15 | F107: 2.747520964 | G107: 69 | H107: 55914.05169 | P107: -5.9 | Q107: =Konstanty!$F$12^R107 -> 372.9046405 | R107: 5.921322732
A108: 343.15 | B108: 3.489930685 | C108: 70 | D108: 308980.225 | E108: 343.15 | F108: 2.769996839 | G108: 70 | H108: 58883.93693 | P108: -5.8 | Q108: =Konstanty!$F$12^R108 -> 376.1272195 | R108: 5.929927436
A109: 344.15 | B109: 3.521359714 | C109: 71 | D109: 332169.4706 | E109: 344.15 | F109: 2.79233656 | G109: 71 | H109: 61992.13016 | P109: -5.7 | Q109: =Konstanty!$F$12^R109 -> 379.3752063 | R109: 5.938525706
A110: 345.15 | B110: =10.79574*(1-(273.16/A110))+5.028*LOG10(A110/273.16)+(1.50475*(10^-4))*(1-10^(-8.2969*((A110/273.16)-1)))+(0.42873*(10^-3))*(10^(4.76955*(1-(273.16/A110)))-1)+0.78614 -> 3.552627647 | C110: 72 | D110: =(10^B110)*100 -> 356966.6526 | E110: =G110+273.15 -> 345.15 | F110: =-9.09718*((273.16/E110)-1)-3.56654*(LOG10(273.16/E110))+0.876793*(1-(E110/273.16))+LOG10(6.1071) -> 2.814541272 | G110: 72 | H110: =(10^F110)*100 -> 65244.10406 | P110: -5.6 | Q110: =Konstanty!$F$12^R110 -> 382.6487812 | R110: 5.947117548
A111: 346.15 | B111: 3.583735869 | C111: 73 | D111: 383473.9521 | E111: 346.15 | F111: 2.836612107 | G111: 73 | H111: 68645.50545 | P111: -5.5 | Q111: =Konstanty!$F$12^R111 -> 385.9481254 | R111: 5.95570297
A112: 347.15 | B112: 3.614685754 | C112: 74 | D112: 411799.4426 | E112: 347.15 | F112: 2.858550186 | G112: 74 | H112: 72202.15927 | P112: -5.4 | Q112: =Konstanty!$F$12^R112 -> 389.2734214 | R112: =28.926-(6148/(273.15+P112)) -> 5.964281979
A113: 348.15 | B113: 3.645478659 | C113: 75 | D113: 442057.3937 | E113: 348.15 | F113: 2.880356614 | G113: 75 | H113: 75920.07253 | P113: -5.3 | Q113: =Konstanty!$F$12^R113 -> 392.6248527 | R113: 5.972854583
A114: 349.15 | B114: 3.676115925 | C114: 76 | D114: 474368.59 | E114: 349.15 | F114: 2.902032487 | G114: 76 | H114: 79805.43835 | P114: -5.2 | Q114: =Konstanty!$F$12^R114 -> 396.0026042 | R114: 5.981420787
A115: 350.15 | B115: 3.70659888 | C115: 77 | D115: 508860.6634 | E115: 350.15 | F115: 2.923578887 | G115: 77 | H115: 83864.64002 | P115: -5.1 | Q115: =Konstanty!$F$12^R115 -> 399.4068616 | R115: 5.989980601
A116: 351.15 | B116: 3.736928837 | C116: 78 | D116: 545668.4407 | E116: 351.15 | F116: 2.944996884 | G116: 78 | H116: 88104.25509 | P116: -5 | Q116: =Konstanty!$F$12^R116 -> 402.837812 | R116: 5.998534029
A117: 352.15 | B117: 3.767107094 | C117: 79 | D117: 584934.3075 | E117: 352.15 | F117: 2.966287535 | G117: 79 | H117: 92531.05951 | P117: -4.9 | Q117: =Konstanty!$F$12^R117 -> 406.2956437 | R117: 6.007081081
A118: 353.15 | B118: 3.797134937 | C118: 80 | D118: 626808.5869 | E118: 353.15 | F118: 2.987451887 | G118: 80 | H118: 97152.03175 | P118: -4.8 | Q118: =Konstanty!$F$12^R118 -> 409.7805459 | R118: 6.015621763
A119: 354.15 | B119: 3.827013637 | C119: 81 | D119: 671449.9361 | E119: 354.15 | F119: 3.008490976 | G119: 81 | H119: 101974.3571 | P119: -4.7 | Q119: =Konstanty!$F$12^R119 -> 413.2927093 | R119: 6.024156081
A120: 355.15 | B120: 3.85674445 | C120: 82 | D120: 719025.76 | E120: 355.15 | F120: 3.029405823 | G120: 82 | H120: 107005.4317 | P120: -4.6 | Q120: =Konstanty!$F$12^R120 -> 416.8323255 | R120: 6.032684044
A121: 356.15 | B121: 3.88632862 | C121: 83 | D121: 769712.6427 | E121: 356.15 | F121: 3.050197442 | G121: 83 | H121: 112252.867 | P121: -4.5 | Q121: =Konstanty!$F$12^R121 -> 420.3995875 | R121: 6.041205658
A122: 357.15 | B122: 3.915767378 | C122: 84 | D122: 823696.7985 | E122: 357.15 | F122: 3.070866832 | G122: 84 | H122: 117724.494 | P122: -4.4 | Q122: =Konstanty!$F$12^R122 -> 423.9946894 | R122: 6.04972093
A123: 358.15 | B123: 3.945061941 | C123: 85 | D123: 881174.5411 | E123: 358.15 | F123: 3.091414984 | G123: 85 | H123: 123428.3674 | P123: -4.3 | Q123: =Konstanty!$F$12^R123 -> 427.6178265 | R123: 6.058229868
A124: 359.15 | B124: 3.974213514 | C124: 86 | D124: 942352.7744 | E124: 359.15 | F124: 3.111842877 | G124: 86 | H124: 129372.7701 | P124: -4.2 | Q124: =Konstanty!$F$12^R124 -> 431.2691953 | R124: 6.066732478
A125: 360.15 | B125: 4.003223287 | C125: 87 | D125: 1007449.504 | E125: 360.15 | F125: 3.132151479 | G125: 87 | H125: 135566.2176 | P125: -4.1 | Q125: =Konstanty!$F$12^R125 -> 434.9489935 | R125: 6.075228768
A126: 361.15 | B126: 4.032092441 | C126: 88 | D126: 1076694.368 | E126: 361.15 | F126: 3.152341748 | G126: 88 | H126: 142017.4622 | P126: -4 | Q126: =Konstanty!$F$12^R126 -> 438.6574201 | R126: 6.083718744
A127: 362.15 | B127: 4.060822142 | C127: 89 | D127: 1150329.195 | E127: 362.15 | F127: 3.172414631 | G127: 89 | H127: 148735.4976 | P127: -3.9 | Q127: =Konstanty!$F$12^R127 -> 442.3946753 | R127: 6.092202414
A128: 363.15 | B128: 4.089413544 | C128: 90 | D128: 1228608.582 | E128: 363.15 | F128: 3.192371065 | G128: 90 | H128: 155729.563 | P128: -3.8 | Q128: =Konstanty!$F$12^R128 -> 446.1609604 | R128: 6.100679785
A129: 364.15 | B129: 4.117867791 | C129: 91 | D129: 1311800.496 | E129: 364.15 | F129: 3.212211977 | G129: 91 | H129: 163009.1479 | P129: -3.7 | Q129: =Konstanty!$F$12^R129 -> 449.9564781 | R129: 6.109150863
A130: 365.15 | B130: 4.146186011 | C130: 92 | D130: 1400186.903 | E130: 365.15 | F130: 3.231938285 | G130: 92 | H130: 170583.9964 | P130: -3.6 | Q130: =Konstanty!$F$12^R130 -> 453.7814324 | R130: 6.117615656
A131: 366.15 | B131: 4.174369325 | C131: 93 | D131: 1494064.424 | E131: 366.15 | F131: 3.251550895 | G131: 93 | H131: 178464.1119 | P131: -3.5 | Q131: =Konstanty!$F$12^R131 -> 457.6360283 | R131: 6.12607417
A132: 367.15 | B132: 4.202418838 | C132: 94 | D132: 1593745.011 | E132: 367.15 | F132: 3.271050705 | G132: 94 | H132: 186659.7609 | P132: -3.4 | Q132: =Konstanty!$F$12^R132 -> 461.5204723 | R132: 6.134526413
A133: 368.15 | B133: 4.230335648 | C133: 95 | D133: 1699556.66 | E133: 368.15 | F133: 3.290438603 | G133: 95 | H133: 195181.4784 | P133: -3.3 | Q133: =Konstanty!$F$12^R133 -> 465.434972 | R133: 6.142972392
A134: 369.15 | B134: 4.258120837 | C134: 96 | D134: 1811844.147 | E134: 369.15 | F134: 3.309715467 | G134: 96 | H134: 204040.0717 | P134: -3.2 | Q134: =Konstanty!$F$12^R134 -> 469.3797364 | R134: 6.151412113
A135: 370.15 | B135: 4.285775481 | C135: 97 | D135: 1930969.796 | E135: 370.15 | F135: 3.328882167 | G135: 97 | H135: 213246.6254 | P135: -3.1 | Q135: =Konstanty!$F$12^R135 -> 473.3549757 | R135: 6.159845584
A136: 371.15 | B136: 4.31330064 | C136: 98 | D136: 2057314.275 | E136: 371.15 | F136: 3.347939562 | G136: 98 | H136: 222812.5055 | P136: -3 | Q136: =Konstanty!$F$12^R136 -> 477.3609013 | R136: 6.168272811
A137: 372.15 | B137: 4.340697366 | C137: 99 | D137: 2191277.431 | E137: 372.15 | F137: 3.366888503 | G137: 99 | H137: 232749.3643 | P137: -2.9 | Q137: =Konstanty!$F$12^R137 -> 481.3977262 | R137: 6.176693802
A138: 373.15 | B138: 4.3679667 | C138: 100 | D138: 2333279.149 | E138: 373.15 | F138: 3.385729833 | G138: 100 | H138: 243069.1447 | P138: -2.8 | Q138: =Konstanty!$F$12^R138 -> 485.4656643 | R138: 6.185108563
P139: -2.7 | Q139: =Konstanty!$F$12^R139 -> 489.5649312 | R139: 6.193517101
P140: -2.6 | Q140: =Konstanty!$F$12^R140 -> 493.6957434 | R140: 6.201919423
P141: -2.5 | Q141: =Konstanty!$F$12^R141 -> 497.858319 | R141: 6.210315537 | W141: Zdroj tepla a vlhkosti | X141: Intenzita | Y141: Produkce | Z141: Intenzita | AA141: Produkce
P142: -2.4 | Q142: =Konstanty!$F$12^R142 -> 502.0528775 | R142: 6.218705448 | X142: zdroje | Y142: zdroje | Z142: zdroje | AA142: zdroje
P143: -2.3 | Q143: =Konstanty!$F$12^R143 -> 506.2796394 | R143: 6.227089164 | X143: tepla | Y143: tepla | Z143: vlhkosti | AA143: vlhkosti
P144: -2.2 | Q144: =Konstanty!$F$12^R144 -> 510.5388269 | R144: =28.926-(6148/(273.15+P144)) -> 6.235466691 | X144: [W] | Y144: [kWh/den] | Z144: [g/h] | AA144: [kg/den]
P145: -2.1 | Q145: =Konstanty!$F$12^R145 -> 514.8306632 | R145: 6.243838037 | W145: zdroje tepla a vlhkosti
P146: -2 | Q146: =Konstanty!$F$12^R146 -> 519.1553731 | R146: 6.252203209 | W146: člověk při lehké práci | X146: 80-100 S | Z146: 30-60
P147: -1.9 | Q147: =Konstanty!$F$12^R147 -> 523.5131828 | R147: 6.260562212 | W147: člověk při středně těžké práci | X147: 100-160 S | Z147: 60-150
P148: -1.8 | Q148: =Konstanty!$F$12^R148 -> 527.9043196 | R148: 6.268915054 | W148: člověk při těžké práci | X148: 160-300 S | Z148: 150-300
P149: -1.7 | Q149: =Konstanty!$F$12^R149 -> 532.3290124 | R149: 6.277261742 | W149: 4 osoby v domácnosti | Y149: 4 S | AA149: 3.5
P150: -1.6 | Q150: =Konstanty!$F$12^R150 -> 536.7874914 | R150: 6.285602283 | W150: praní prádla* | Y150: 0,8-2,2 T | Z150: 50-150 | AA150: 1,2 - 2,4
P151: -1.5 | Q151: =Konstanty!$F$12^R151 -> 541.2799882 | R151: 6.293936683 | W151: žehlení | X151: 300-1000 T | Z151: 100-200
P152: -1.4 | Q152: =Konstanty!$F$12^R152 -> 545.8067358 | R152: 6.302264949 | W152: vaření | Y152: 3 T | Z152: 50-120 | AA152: 0.9
P153: -1.3 | Q153: =Konstanty!$F$12^R153 -> 550.3679687 | R153: 6.310587088 | W153: mytí nádobí | AA153: 0.4
P154: -1.2 | Q154: =Konstanty!$F$12^R154 -> 554.9639225 | R154: 6.318903107 | W154: koupel ve vaně | Z154: 700
P155: -1.1 | Q155: =Konstanty!$F$12^R155 -> 559.5948346 | R155: 6.327213012 | W155: osobní hygiena | X155: 1.3 | Y155: 1.3 | Z155: 1.3 | AA155: 1.3
P156: -1 | Q156: =Konstanty!$F$12^R156 -> 564.2609437 | R156: 6.335516811 | W156: aktivní zdroje vlhkosti
P157: -0.9 | Q157: =Konstanty!$F$12^R157 -> 568.9624897 | R157: 6.343814509 | W157: sprchování | X157: 0 T | Z157: až 2600
P158: -0.8 | Q158: =Konstanty!$F$12^R158 -> 573.6997142 | R158: 6.352106113 | W158: pasivní zdroje vlhkosti
P159: -0.7 | Q159: =Konstanty!$F$12^R159 -> 578.4728602 | R159: 6.360391631 | W159: rostliny | X159: 0 S | Z159: 2020-05-01
P160: -0.6 | Q160: =Konstanty!$F$12^R160 -> 583.2821721 | R160: 6.36867107 | W160: 20 rostlin | Y160: 0 S | AA160: 0,5-1,0
P161: -0.5 | Q161: =Konstanty!$F$12^R161 -> 588.1278959 | R161: 6.376944434 | W161: úklid | AA161: 0.5
P162: -0.4 | Q162: =Konstanty!$F$12^R162 -> 593.0102788 | R162: 6.385211732 | W162: sušení prádla (odstředěné)** | X162: 0 S | Z162: 50-200 | AA162: 0,4-0,7*
P163: -0.3 | Q163: =Konstanty!$F$12^R163 -> 597.9295696 | R163: 6.39347297 | W163: sušení prádla (mokré, kapající)** | X163: 0 S | Z163: 100-500 | AA163: 0,8-1,2*
P164: -0.2 | Q164: =Konstanty!$F$12^R164 -> 602.8860188 | R164: 6.401728155 | W164: produkce čtyřčlenné domácnosti
P165: -0.1 | Q165: =Konstanty!$F$12^R165 -> 607.8798781 | R165: 6.409977294 | W165: celkem | Y165: 8-15 T | AA165: 2014-04-01
P166: 0 | Q166: =Konstanty!$F$12^R166 -> 612.9114008 | R166: 6.418220392
P167: 0.1 | Q167: =Konstanty!$F$12^R167 -> 615.0773207 | R167: =23.58-(4044.2/(235.6+P167)) -> 6.421747985
P168: 0.2 | Q168: =Konstanty!$F$12^R168 -> 619.5693235 | R168: 6.429024597
P169: 0.3 | Q169: =Konstanty!$F$12^R169 -> 624.0902818 | R169: 6.43629504
P170: 0.4 | Q170: =Konstanty!$F$12^R170 -> 628.6403559 | R170: 6.443559322
P171: 0.5 | Q171: =Konstanty!$F$12^R171 -> 633.2197069 | R171: 6.45081745
P172: 0.6 | Q172: =Konstanty!$F$12^R172 -> 637.8284963 | R172: 6.458069433
P173: 0.7 | Q173: =Konstanty!$F$12^R173 -> 642.4668867 | R173: 6.465315277
P174: 0.8 | Q174: =Konstanty!$F$12^R174 -> 647.1350411 | R174: 6.472554992
P175: 0.9 | Q175: =Konstanty!$F$12^R175 -> 651.8331234 | R175: 6.479788584
P176: 1 | Q176: =Konstanty!$F$12^R176 -> 656.5612984 | R176: 6.487016061
P177: 1.1 | Q177: =Konstanty!$F$12^R177 -> 661.3197313 | R177: 6.494237431
P178: 1.2 | Q178: =Konstanty!$F$12^R178 -> 666.1085883 | R178: 6.501452703
P179: 1.3 | Q179: =Konstanty!$F$12^R179 -> 670.9280362 | R179: 6.508661883
P180: 1.4 | Q180: =Konstanty!$F$12^R180 -> 675.7782427 | R180: 6.515864979
P181: 1.5 | Q181: =Konstanty!$F$12^R181 -> 680.6593761 | R181: 6.523061999
P182: 1.6 | Q182: =Konstanty!$F$12^R182 -> 685.5716056 | R182: 6.530252951
P183: 1.7 | Q183: =Konstanty!$F$12^R183 -> 690.5151011 | R183: 6.537437842
P184: 1.8 | Q184: =Konstanty!$F$12^R184 -> 695.4900331 | R184: 6.544616681
P185: 1.9 | Q185: =Konstanty!$F$12^R185 -> 700.4965731 | R185: 6.551789474
P186: 2 | Q186: =Konstanty!$F$12^R186 -> 705.5348932 | R186: 6.558956229
P187: 2.1 | Q187: =Konstanty!$F$12^R187 -> 710.6051665 | R187: 6.566116954
P188: 2.2 | Q188: =Konstanty!$F$12^R188 -> 715.7075665 | R188: 6.573271657
P189: 2.3 | Q189: =Konstanty!$F$12^R189 -> 720.8422678 | R189: 6.580420345
P190: 2.4 | Q190: =Konstanty!$F$12^R190 -> 726.0094456 | R190: 6.587563025
P191: 2.5 | Q191: =Konstanty!$F$12^R191 -> 731.2092759 | R191: 6.594699706
P192: 2.6 | Q192: =Konstanty!$F$12^R192 -> 736.4419357 | R192: 6.601830395
P193: 2.7 | Q193: =Konstanty!$F$12^R193 -> 741.7076023 | R193: 6.608955099
P194: 2.8 | Q194: =Konstanty!$F$12^R194 -> 747.0064544 | R194: 6.616073826
P195: 2.9 | Q195: =Konstanty!$F$12^R195 -> 752.3386709 | R195: 6.623186583
P196: 3 | Q196: =Konstanty!$F$12^R196 -> 757.7044319 | R196: 6.630293378
P197: 3.1 | Q197: =Konstanty!$F$12^R197 -> 763.103918 | R197: 6.637394219
P198: 3.2 | Q198: =Konstanty!$F$12^R198 -> 768.537311 | R198: 6.644489112
P199: 3.3 | Q199: =Konstanty!$F$12^R199 -> 774.004793 | R199: 6.651578066
P200: 3.4 | Q200: =Konstanty!$F$12^R200 -> 779.5065473 | R200: 6.658661088
... 466 more rows

Sheet Konstanty
A1: Konstanty | H1: Pozn
A2: Měrná tepelná kapacita s.v. | E2: csv | F2: 1010 | G2: J/kg.K | H2: s.v. | I2: suchý vzduch
A3: Měrná tepelná kapacita v.p. | E3: cvp | F3: 1840 | G3: J/kg.K | H3: v.p. | I3: vodní pára
A4: výparné teplo vody | E4: l | F4: 225700 | G4: J/kg
A5: měrná plynová konstanta s.v. | E5: Rsv | F5: 287.062 | G5: J/kg.K | H5: s.v. | I5: suchý vzduch | K5: =F5/F6 -> 0.6220195016
A6: měrná plynová konstanta v.p. | E6: Rvp | F6: 461.5 | G6: J/kg.K | H6: v.p. | I6: vodní pára
A7: tlak v 0 mnm | E7: p0 | F7: 101.325 | G7: kPa
A8: hustota vzduchu v 0mnm | E8: ρvz | F8: 1.225 | G8: kg/m3
A9: Plynová konstanta | E9: R | F9: 8.31432 | G9: J/mol.K
A10: Molární hmotnost s.v. | E10: Msv | F10: 28.96 | G10: kg/mol | H10: s.v. | I10: suchý vzduch
A11: Molární hmotnost v.p. | E11: Mvp | F11: 18.02 | G11: kg/mol | H11: v.p. | I11: vodní pára
A12: eulerova konstanta | E12: e | F12: 2.718281828 | G12: [-]
A13: gravitační zrychlení | E13: g | F13: 9.80665 | G13: m/s2
A14: tlak v 0 nadmořské výšce | E14: p0 | F14: 101325 | G14: Pa
A15: výparné teplo vody | E15: l | F15: 2257000 | G15: J/kg
A16: hustota v urcite nadm vysce | E16: vyska | F16: 273 | G16: m | H16: =$F$8*$F$12^(($F$8*$F$13*F16)/$F$14) -> 1.265298256 | I16: kg/m3
A17: tlak v urcite nadm vysce | H17: =F14*$F$12^(($F$8*$F$13*F16)/$F$14) -> 104658.2415 | I17: Pa

Sheet Vzorce
A1: tlak vzduchu pro H <11000m
A2: t=15-0,0065h
A3: p=1013,25(1-h/44308)^5,2553
A4: q=1,225(1-h/44308)^4,2553
A6: p=p0(1-g*h/cpd*T0)^cpd/Rd
A8: Tlak vzduchu | I8: Jednotka
A9: p=psv+pvp | C9: psv - parcialni tlak s.v | I9: Pa
C10: pvp - parcialni tlak vodni pary | I10: Pa
A12: Parciální tlak nasycené vodní páry
C14: p´´vp - parcialni tlak nasycené vodní páry | I14: Pa
A16: Entalpie
A17: h=hsv+x*hvp | C17: hsv - entalpie sucheho vzduchu J/kg | I17: J/kg
C18: hvp - entalpie vodni pary J/kg | I18: J/kg
C19: x - mnozstvi vody v suchem vzduchu kg/kg s.v. | I19: kg/kg s.v.
A21: hsv = csv*t | C21: csv - merna tepelna kapacita s.v. | I21: J/kg.K
A22: hvp = l+ cvp*t | C22: cvp - merna tepelna kapacita v.p. | I22: J/kg.K
C23: l - výparné teplo vody | I23: kJ
C24: t - teplota | I24: °C/K
A25: h=csv.t+x(cvp.t+l) | I25: J/kg
A27: Absolutní vlhkost
A28: a=mw/Vc | C28: mw-hm vodní pary | I28: kg
C29: V - celkový objem vzduchu | I29: m3
A30: Relativní vlhkost
A31: rh = mw/Mw | C31: mw-hm vodní pary | I31: kg
C32: Mw-hm vodní pary při plném nasycení vzduchu | I32: kg
A34: rh=pvp/p''vp | C34: p´´vp - parcialni tlak nasycené vodní páry | I34: Pa
C35: pvp - parcialni tlak vodní páry | I35: Pa
A37: Mn. odpařené vody
A38: mw=ε*A*(p''vp-pvp)
C39: ε - součinitel odparu vody z vodní hladiny | I39: -
C40: A - plocha | I40: m2
C41: p´´vp - tlak syté vodní páry při teplotě vody v bazénu | I41: Pa
C42: pvp - parciální tlak vodní páry ve vzduchu | I42: Pa
A44: Měrná vlhkost
A45: x=mvp/msv=(Rsv/Rvp)*(pvp/psv) = 0,622.(pvp/p-pvp)
C46: mvp - hmotnost vodní páry | I46: kg
C47: msv - hmotnost suchého vzduchu
C48: Rsv = | D48: 287.062 | I48: J/kg.K
C49: Rvp = | D49: 461.5
A51: Měrná hmotnost
A52: ρ=ρsv+ρvp | I52: kg/m3
I55: kg/m3
A58: Stavová rovnice
A59: p.V=n.R.T | C59: n - látkové množství | I59: mol
C60: p - tlak | I60: Pa
C61: V - objem | I61: m3
C62: R - univerzální plynová konstanta | I62: J/mol.K
C63: T - termodynamická teplota | I63: K
A64: n=m/M | C64: M - molární hmotnost | I64: kg/mol
C65: m - hmotnost plynu | I65: kg
A66: ρ=m/V | C66: ρ - měrná hmotnost | I66: kg/m3
A70: Tlak na nadm výšce
A71: pa=101,4*((1600-h)/(1600+h))
A72: Vodou chlazene kondenzatory
A74: Q=U.A.dtm
C75: Q-předané teplo | I75: W
C76: U-celkový součinitel prostupu tepla | I76: W/m2K
C77: A-plocha | I77: m2
C78: dtm | D78: stredni teplotni rozdil | I78: K
A80: U=1/((1/aw)+rfw+R+(1/ar))
C82: aw-součinitel prostupu na strane vody | I82: W/m2K
C83: R-tepelný odpor výměníku | I83: W/K
C84: ar-teplotní odpor na strane chladiva | I84: W/m2K
C85: rfw-tep odpor pripadnych usazenin
A87: teplonosné látky
C89: ethylen glykol
C91: nezámrzná teplota
B92: ředění | C92: 01:01:00 | D92: 00:01:01.500 | E92: 01:02:00 | F92: 01:03:00
B93: nezámrzná teplota | C93: -35 | D93: -21 | E93: -17 | F93: -11
A94: Prenos na vymeniku
A96: Q=m.c.dt | C96: m.- hmotnostni prutok
C97: c-tepelná kapacita teplonosné látky
C98: dt-stredni teplotni spad
A99: Teplota rosného bodu
A100: Tdp = (243,5*ln(Ro/100*e^((17,67*T)/(243,5+T))))/(17,67-(243,5*ln(Ro/100*e^((17,67*T)/(243,5+T)))))
A107: návrhová rh podle CSN 730540-3
C109: (93*T-3153,5)/(T-39,17) | F109: %

Sheet Jednotky
B1: Značka | C1: index | D1: veličina | F1: jednotka
B2: t | D2: teplota | F2: °C
B3: rh | D3: relativní vlhkost | F3: %
B4: h | D4: měrná entalpie | F4: J/kg
C5: sv | E5: suchého vzduchu
C6: vp | E6: vodní páry
B7: p | D7: tlak vzduchu | F7: Pa
C8: sv | E8: suchého vzduchu
C9: vp | E9: vodní páry
B10: p'' | D10: tlak nasycené vodní páry | F10: Pa
B11: x | D11: měrná vlhkost | F11: g/kg s.v.
B12: Δx | D12: změna měrné vlhkosti | F12: g/kg s.v.
B13: ρ | D13: hustota vzduchu | F13: kg/m3
C14: e | E14: exteriérová
C15: i | E15: interiérová
C16: vyp | E16: na výparníku
C17: 4 | E17: předehřev exteriérového vzduchu
C18: 4' | E18: po smíšení
C19: 5 | E19: za kondenzátorem
C20: před | E20: předehřev
C21: zv | E21: zvýšení do exteriéru
C22: ch | E22: chladič
C23: zv | E23: zvýšení do interiéru
B25: Q | D25: výkon | F25: W
C26: v | E26: výparníku
C27: k | E27: kondenzátoru
C28: pož | E28: požadováno na dohřev vzduchu
C29: dohř | E29: požadováno dodat na dořev
C30: přebyt | E30: přebytečné po dohřevu vzduchu
B31: COP | D31: topný faktor tepelného čerpadla
B32: Pet | D32: výkon tepelného čerpadla
B33: n | D33: výměna vzduchu | F33: 1/h
B34: V | D34: množství potřeby vzduchu | F34: m3/h
C35: 1 | E35: od produkované vlhkosti
C36: 2 | E36: z výměny vzduchu haly
C37: 3 | E37: z tepelných zisků/potřeb
C38: 4 | E38: pro osoby
B39: a | D39: délka bazénu | F39: m
B40: b | D40: šířka bazénu | F40: m
B41: c | D41: délka bazénové haly | F41: m
B42: d | D42: šířka bazénové haly | F42: m
B43: v | D43: výška bazénové haly | F43: m
